Workbook

Sheet Customer Information
B2: FALSE
D4: BPA Small Compressed Air Calculator
D5: and Incentive Funding Application Tool
D6: PARTICIPANT INFORMATION
D7: Company Name: | S7: Prepared by: | AC7: Date:
D9: Contact: | R9: Title:
D11: Mailing Address: | R11: City: | Z11: State: | AC11: Zip:
D13: Cell/Tel: | I13: Fax: | O13: Email: | X13: Business Type:
X14: Manufacturing
D17: PROJECT INFORMATION
D20: Utility name: | Q20: BES: | Z20: Average electric rate per kWh:
Q21: =IFERROR(VLOOKUP('Master Outputs'!A92,'Master Outputs'!A93:C230,3,0),"") -> 10170 | Z21: 0.0571
D22: Project Site Address, if different: | Q22: City: | Z22: State: | AC22: Zip:
D24: County: | M24: Type of Industry (select): | W24: Reason for project (check only one):
D25: Lane
D26: Sector (select):
D29: UTILITY INCENTIVE PROGRAM INFORMATION
D30: Incentive rate offered by utility: | M30: Incentive cap: | V30: Additional non-utility funding (if applicable):
D31: 0.33 | G31: per kWh annual savings | M31: 0.7 | P31: of eligible project cost
D34: VENDOR INFORMATION
D35: Company: | P35: Sales representative: | Y35: Cell/Tel:
D40: TO APPLY FOR INCENTIVES FROM YOUR LOCAL ELECTRIC UTILITY:
E41: 1) | F41: Check with your local utility regarding the availability of incentives for energy-efficient compressed air systems.
F42: The utility will help you get in touch with the people who handle administration of incentives.
E43: 2) | F43: Enter the information requested above about participant, project, vendor, baseline compressor, proposed
F44: new compressor, operating characteristics of the system, and assumptions.
E45: 3) | F45: Send this Excel file as an email attachment to the incentive administrator. Include a copy of the proposal
F46: or quotation for the new compressor.
E47: 4) | F47: The utility's incentive administrator will review the calculator's inputs and outputs, call with questions,
F48: and request any additional documentation that may be necessary. Once the technical aspects of the
F49: proposed project have been approved and the estimated incentive amount has been confirmed, if
F50: Participant wishes to move ahead with the project, the incentive administrator will secure funding
F51: approval from the utility.
E52: 5) | F52: Once the funding agreement is in place, equipment may be ordered and installed. Please note that
F53: a utility will not offer funding for projects in which equipment has been ordered prior to the utility's
F54: (and in some cases, BPA's) approval of funding.
E55: 6) | F55: When installation is complete, notify the utility's incentive administrator. The administrator will
F56: request copies of invoices, ask Participant to sign a completion certification form, and may inspect
F57: the installation. If conditions are significantly different from those represented in the analysis, the
F58: amount of the incentive may be affected. Incentive checks are typically mailed 4 to 6 weeks after
F59: receipt of the completion form and invoices.
D61: Please be advised that energy savings and costs represented herein are entirely dependent upon inputs provided by the user. The calculation methods, while believed to be reasonably accurate, are estimates; actual results may vary. Responsibility for all representations herein, input information as well as calculated output values, rests solely with the user. Nothing in this electronic file or print document is to be construed as a guarantee of savings or performance or as an offer of funding.
B62: =" Cascade Energy, Inc. © 2007 - "& TEXT(Tool_Revision_Date,"mmmm-dd-yyyy") -> Cascade Energy, Inc. © 2007 - November-07-2023 | AG62: =ToolName&" v"&ToolVersion & " " -> BPA Small Compressed Air Calculator v5.1
D103: TO APPLY FOR INCENTIVES FROM ENERGY TRUST OF OREGON: | AG103: for Energy Trust Projects
E104: 1) | F104: Enter the information requested above about participant, project, vendor, baseline compressor, proposed
F105: new compressor, operating characteristics of the system, and assumptions. | AR105: FALSE
E106: 2) | F106: Send this Excel file as an email attachment to smallindustrial@energytrust.org. Include a copy of the proposal
F107: or quotation for the new compressor.
E108: 3) | F108: Energy Trust will review inputs and outputs and call with any questions. Upon approval, Energy Trust will then
F109: provide an offer of funding for review and acceptance by Participant.
E110: 4) | F110: Participant completes the entries in the Energy Trust agreement, signs, and returns the agreement to Energy
F111: Trust.
E112: 5) | F112: Order equipment and schedule the installation. Please note that Energy Trust must approve funding
F113: before equipment is ordered.
E114: 6) | F114: When installation is complete, notify Energy Trust. Energy Trust will request copies of invoices, ask you to
F115: sign a completion certification form, and may inspect the installation. If conditions are significantly different
F116: from those represented in the analysis, the amount of the incentive may be affected. Incentive checks are
F117: mailed 3 to 6 weeks after receipt of the completion form and invoices.
D123: TO APPLY FOR INCENTIVES FROM YOUR LOCAL ELECTRIC UTILITY: | AG123: for Oregon, non-Energy Trust projects
E124: 1) | F124: Check with your local utility regarding the availability of incentives for energy-efficient compressed air systems.
F125: The utility will help you get in touch with the people who handle administration of incentives.
E126: 2) | F126: Enter the information requested above about participant, project, vendor, baseline compressor, proposed
F127: new compressor, operating characteristics of the system, and assumptions.
E128: 3) | F128: Send this Excel file as an email attachment to the incentive administrator. Include a copy of the proposal
F129: or quotation for the new compressor.
E130: 4) | F130: The utility's incentive administrator will review the calculator's inputs and outputs, call with questions,
F131: and request any additional documentation that may be needed. Once the technical aspects of the proposed
F132: project have been approved and the estimated incentive amount has been confirmed, if Participant wishes
F133: to move ahead with the project, the incentive administrator will secure funding approval from the utility.
E134: 5) | F134: Once the funding agreement is in place, equipment may be ordered and installed. Please note that
F135: a utility will not offer funding for projects in which equipment has been ordered prior to the utility's
F136: (and in some cases, BPA's) approval of funding. | AN136: Reason for project:
E137: 6) | F137: When installation is complete, notify the utility's incentive administrator. The administrator will | AR137: TRUE | AS137: =IF(AR137,10,1) -> 10 | AT137: Replace working compressor
F138: request copies of invoices, ask Participant to sign a completion certification form, and may inspect | AR138: TRUE | AS138: =IF(AR138,10,2) -> 10 | AT138: End of life compressor replacement
F139: the installation. If conditions are significantly different from those represented in the analysis, the | AR139: TRUE | AS139: =IF(AR139,10,3) -> 10 | AT139: Add capacity to existing system
F140: amount of the incentive may be affected. Incentive checks are typically mailed 4 to 6 weeks after | AR140: FALSE | AS140: =IF(AR140,10,4) -> 4 | AT140: New compressor in new facility
F141: receipt of the completion form and invoices. | AS141: =IF(AND(NOT(AR137),NOT(AR138),NOT(AR139),NOT(AR140)),10,5) -> 5 | AT141: unknown
AT142: =VLOOKUP(10,AS137:AT141,2,FALSE) -> Replace working compressor
D143: TO APPLY FOR INCENTIVES FROM YOUR LOCAL ELECTRIC UTILITY: | AG143: for non-Oregon projects
E144: 1) | F144: Check with your local utility regarding the availability of incentives for energy-efficient compressed air systems. | AP144: Is "Other Utility"? | AR144: FALSE
F145: The utility will help you get in touch with the people who handle administration of incentives. | AP145: Is BPA Project? | AR145: TRUE
E146: 2) | F146: Enter the information requested above about participant, project, vendor, baseline compressor, proposed | AP146: ETO Biz Type
F147: new compressor, operating characteristics of the system, and assumptions.
E148: 3) | F148: Send this Excel file as an email attachment to the incentive administrator. Include a copy of the proposal
F149: or quotation for the new compressor.
E150: 4) | F150: The utility's incentive administrator will review the calculator's inputs and outputs, call with questions,
F151: and request any additional documentation that may be necessary. Once the technical aspects of the
F152: proposed project have been approved and the estimated incentive amount has been confirmed, if
F153: Participant wishes to move ahead with the project, the incentive administrator will secure funding
F154: approval from the utility.
E155: 5) | F155: Once the funding agreement is in place, equipment may be ordered and installed. Please note that
F156: a utility will not offer funding for projects in which equipment has been ordered prior to the utility's
F157: (and in some cases, BPA's) approval of funding.
E158: 6) | F158: When installation is complete, notify the utility's incentive administrator. The administrator will
F159: request copies of invoices, ask Participant to sign a completion certification form, and may inspect
F160: the installation. If conditions are significantly different from those represented in the analysis, the
F161: amount of the incentive may be affected. Incentive checks are typically mailed 4 to 6 weeks after
F162: receipt of the completion form and invoices.
AG163: BLANK CELLS IN THE NEXT 19 LINES FOR CLEARING INSTRUCTIONS.
D183: TO APPLY FOR INCENTIVES FROM ROCKY MOUNTAIN POWER: | AG183: for Rocky Mountain Power projects
E184: 1) | F184: Check with Rocky Mountain Power to get in touch with the people who handle the administration
F185: of incentives for compressed air systems at www.rockymountainpower.net/wattsmart or 801-642-4472.
E186: 2) | F186: Enter the information requested above about participant, project, vendor, baseline compressor, proposed
F187: new compressor, operating characteristics of the system, and assumptions.
E188: 3) | F188: Send this Excel file as an email attachment to the incentive administrator. Include a copy of the proposal
F189: or quotation for the new compressor.
E190: 4) | F190: The incentive administrator will review the calculator's inputs and outputs, call with questions,
F191: and request any additional documentation that may be necessary to establish the incentive estimate.
F192: While this step is not required in order to receive an incentive, it is recommended, because it provides an
F193: opportunity for the incentive administrator to concur with the assumptions supporting the savings estimate
F194: upon which the incentive will be based.
E195: 5) | F195: Order and install the equipment.
E196: 6) | F196: Complete the incentive application/agreement, which can be downloaded from the website given above.
F197: Send the completed application with a copy of dated invoices or receipts substantiating the project cost
F198: to the address given on the application. Please allow six weeks for your incentive check to arrive.
E199: 7) | F199: Please note that incentive qualifications and amounts are subject to change and termination at any time.
F200: Rocky Mountain Power reserves the right to conduct inspections to verify information provided in the application
F201: and to inspect equipment after payment of incentives. Inspections may include a telephone survey,
F202: site visit, and/or the installation of temporary monitoring equipment at any time up to 36 months after installation.
D204: TO APPLY FOR INCENTIVES FROM PACIFIC POWER: | AG204: for Pacific Power projects
E205: 1) | F205: Check with Pacific Power to get in touch with the people who handle the administration
F206: of incentives for compressed air systems. See http://www.pacificpower.net/wattsmart.
E207: 2) | F207: Enter the information requested above about participant, project, vendor, baseline compressor, proposed
F208: new compressor, operating characteristics of the system, and assumptions.
E209: 3) | F209: Send this Excel file as an email attachment to the incentive administrator. Include a copy of the proposal
F210: or quotation for the new compressor.
E211: 4) | F211: The incentive administrator will review the calculator's inputs and outputs, call with questions,
F212: and request any additional documentation that may be necessary to establish the energy savings estimate.
F213: While this step is not required in order to receive an incentive, it is recommended because it provides an
F214: opportunity for the incentive administrator to concur with the assumptions supporting the savings estimate upon
F215: which the incentive will be based.
E216: 5) | F216: Order and install the equipment.
E217: 6) | F217: Complete the incentive application/agreement, which can be downloaded from the website given above.
F218: Send the completed application with a copy of dated invoices or receipts substantiating the project cost
F219: to the address given on the application. Please allow six weeks for your incentive check to arrive.
E220: 7) | F220: Please note that incentive qualifications and amounts are subject to change and termination at any time.
F221: Pacific Power reserves the right to conduct inspections to verify information provided in the application
F222: and to inspect equipment after payment of incentives. Inspections may include a telephone survey,
F223: site visit, and/or the installation of temporary monitoring equipment at any time up to 36 months after installation.
AJ240: Calculator Type List | AK240: Sector List
AJ241: Retrofit | AK241: Industrial
AJ242: New Construction | AK242: Commercial
AJ243: Major Remodel | AK243: Agricultural
C252: 5

Sheet Savings Calculations
C3: ESTIMATE OF ENERGY SAVINGS AND INCENTIVES
D5: Customer: | E5: =IF(ISBLANK(CompanyName),"",CompanyName&" – " &SiteCity&", "&SiteState) -> – ,
D6: Vendor: | E6: =VendorCompany -> 
C8: SELECTION OF OPTIONAL MEASURES
C9: Select all that apply:
C12: INFORMATION ABOUT THE COMPRESSORS
J13: Baseline Compressor | P13: Proposed Upgrade Compressor
H14: Type of compressor: | L14: 1 | Q14: 1
H15: Type of part load control: | L15: 3 | Q15: 4
H16: If unloading control, unloaded sump pressure: | L16: 6 | Q16: 6
H18: Compressor hp: | M18: hp | Q18: hp
H19: Rated flow: | M19: acfm | Q19: acfm
H20: Plant elevation: | M20: ft
H21: Corrected compressor flow (calculated): | J21: =CS79 -> 0 | M21: scfm | P21: =CS80 -> 0 | Q21: scfm
H22: If known, compressor shaft bhp: | M22: bhp | Q22: bhp
H23: Performance check (calculated): | J23: =IFERROR(IF(ISTEXT(CF103),"bhp error", J19/CF103),"") ->  | M23: acfm/kW | P23: =IFERROR(IF(ISTEXT(CF104),"bhp error",P19/CF104),"") ->  | Q23: acfm/kW
H24: Pressure at rated flow: | M24: psig | Q24: psig
H25: Receiver volume: | Q25: gallons
H26: ="Equipment cost" & IF(OR(ShowDryer,InstallFanVFD,FlowReductionEEM,ShowDesiccantDryer)," (including optional measure costs)","") &":" -> Equipment cost: | J26: =-SUMIF('Explanation of Inputs'!AC52:AE72,"<0") -> 0 | P26: =SUMIF('Explanation of Inputs'!AC52:AE72,">0") -> 0 | U26: *Enter costs on Explanation of Inputs Tab
H27: ="Installation cost, shipping, etc." -> Installation cost, shipping, etc.
M29: Estimated annual reduction (increase) in operating or maintenance cost: | Q29: $/yr
M30: Estimated annual value of project's non-energy benefits: | Q30: $/yr
H32: Cooling fan motor hp: | J32: 2 | M32: hp | P32: 2 | Q32: hp
C34: INFORMATION ABOUT THE SYSTEM AND ITS OPERATION
G36: Current average operating pressure: | J36: psig
G37: Average operating pressure after upgrade: | J37: psig
G38: Annual Hours of Operation: | J38: hours/yr | R38: Airflow reduction in scfm
C40: Profile of Baseline Compressed Air Demand | J40: Baseline Energy Use | U40: Upgrade Energy Use
C41: % time | D41: % flow | E41: hrs/yr | G41: scfm | J41: % Load | M41: kW | P41: kWh/yr | R41: Δ scfm | S41: % Load after user flow reduction | T41: dryer Δ scfm | U41: % Load | V41: kW | Y41: kWh/yr
E42: =C42*$H$38 -> 0 | G42: =D42*$CS$79 -> 0 | J42: =G42/$CS$79 ->  | M42: =$CF$103*(IF(J42<0.5,$CD$109+$CD$110*J42,$CE$109+$CE$110*J42)+IF(OR($L$15=3,$L$15=5),VLOOKUP($J$25/$J$19,$CH$111:$CQ$121,HLOOKUP(J42,$CH$108:$CQ$109,2,TRUE),TRUE),0))*((-$J$24+$H$36)/250+1) ->  | P42: =E42*M42 ->  | S42: =(G42-R42)/$CS$80 ->  | T42: =IF(ShowDesiccantDryer,'Desiccant Dryer'!I59,0) -> 0 | U42: =MAX(0,(G42-R42-T42)/$CS$80) ->  | V42: =$CF$104*(IF(U42<0.5,$CD$120+$CD$121*U42,$CE$120+$CE$121*U42)+IF(OR($Q$15=3,$Q$15=5),VLOOKUP($P$25/$P$19,$CH$111:$CQ$121,HLOOKUP(U42,$CH$108:$CQ$109,2,TRUE),TRUE),0))*((-$P$24+$H$37)/250+1) ->  | Y42: =E42*V42 -> 
E43: =C43*$H$38 -> 0 | G43: =D43*$CS$79 -> 0 | J43: =G43/$CS$79 ->  | M43: =$CF$103*(IF(J43<0.5,$CD$109+$CD$110*J43,$CE$109+$CE$110*J43)+IF(OR($L$15=3,$L$15=5),VLOOKUP($J$25/$J$19,$CH$111:$CQ$121,HLOOKUP(J43,$CH$108:$CQ$109,2,TRUE),TRUE),0))*((-$J$24+$H$36)/250+1) ->  | P43: =E43*M43 ->  | S43: =(G43-R43)/$CS$80 ->  | T43: =IF(ShowDesiccantDryer,'Desiccant Dryer'!I60,0) -> 0 | U43: =MAX(0,(G43-R43-T43)/$CS$80) ->  | V43: =$CF$104*(IF(U43<0.5,$CD$120+$CD$121*U43,$CE$120+$CE$121*U43)+IF(OR($Q$15=3,$Q$15=5),VLOOKUP($P$25/$P$19,$CH$111:$CQ$121,HLOOKUP(U43,$CH$108:$CQ$109,2,TRUE),TRUE),0))*((-$P$24+$H$37)/250+1) ->  | Y43: =E43*V43 -> 
E44: =C44*$H$38 -> 0 | G44: =D44*$CS$79 -> 0 | J44: =G44/$CS$79 ->  | M44: =$CF$103*(IF(J44<0.5,$CD$109+$CD$110*J44,$CE$109+$CE$110*J44)+IF(OR($L$15=3,$L$15=5),VLOOKUP($J$25/$J$19,$CH$111:$CQ$121,HLOOKUP(J44,$CH$108:$CQ$109,2,TRUE),TRUE),0))*((-$J$24+$H$36)/250+1) ->  | P44: =E44*M44 ->  | T44: =IF(ShowDesiccantDryer,'Desiccant Dryer'!I61,0) -> 0 | U44: =MAX(0,(G44-R44-T44)/$CS$80) ->  | V44: =$CF$104*(IF(U44<0.5,$CD$120+$CD$121*U44,$CE$120+$CE$121*U44)+IF(OR($Q$15=3,$Q$15=5),VLOOKUP($P$25/$P$19,$CH$111:$CQ$121,HLOOKUP(U44,$CH$108:$CQ$109,2,TRUE),TRUE),0))*((-$P$24+$H$37)/250+1) ->  | Y44: =E44*V44 -> 
E45: =C45*$H$38 -> 0 | G45: =D45*$CS$79 -> 0 | J45: =G45/$CS$79 ->  | M45: =$CF$103*(IF(J45<0.5,$CD$109+$CD$110*J45,$CE$109+$CE$110*J45)+IF(OR($L$15=3,$L$15=5),VLOOKUP($J$25/$J$19,$CH$111:$CQ$121,HLOOKUP(J45,$CH$108:$CQ$109,2,TRUE),TRUE),0))*((-$J$24+$H$36)/250+1) ->  | P45: =E45*M45 ->  | T45: =IF(ShowDesiccantDryer,'Desiccant Dryer'!I62,0) -> 0 | U45: =MAX(0,(G45-R45-T45)/$CS$80) ->  | V45: =$CF$104*(IF(U45<0.5,$CD$120+$CD$121*U45,$CE$120+$CE$121*U45)+IF(OR($Q$15=3,$Q$15=5),VLOOKUP($P$25/$P$19,$CH$111:$CQ$121,HLOOKUP(U45,$CH$108:$CQ$109,2,TRUE),TRUE),0))*((-$P$24+$H$37)/250+1) ->  | Y45: =IF($CF$74,V45*M51,E45*V45) -> 
D46: timed out | E46: =C46*$H$38 -> 0 | G46: 0 | J46: 0 | M46: 0 | P46: =E46*M46 -> 0 | S46: 0 | U46: 0 | V46: 0 | Y46: =IF($CF$74,V46*M52,E46*V46) -> 0
C47: =SUM(C42:C46) -> 0 | E47: =SUM(E42:E46) -> 0 | M47: Total: | P47: =ROUND(SUM(P42:P46),0) ->  | W47: Total: | Y47: =ROUND(SUM(Y42:Y46),0) -> 
C49: ="The baseline operating profile shows the compressor running unloaded "&TEXT($C$45,"0%")&" of the time." -> The baseline operating profile shows the compressor running unloaded 0% of the time.
C50: If the new compressor has time-out controls, estimate the updated run-times for the upgrade compressor below.
D51: 0.05 | E51: Running Unloaded (0% flow) | M51: =D51*$H$38 -> 0 | N51: Upgrade Annual Hours - Unloaded (0% flow)
D52: 0.05 | E52: Cycled Off (timed out) | M52: =D52*$H$38 -> 0 | N52: Upgrade Annual Hours -Cycled Off (timed out)
D53: =SUM(D51:D52) -> 0.1 | E53: =IF(D53=C45,"Total","The total must be equal to the total baseline compressor unloaded time of "&TEXT(C45,"0%")&".") -> The total must be equal to the total baseline compressor unloaded time of 0%.
C65: ="SUMMARY OF RESULTS" -> SUMMARY OF RESULTS
CH66: Elevation, feet | CL66: =J20 -> 0
E67: Comp. | G67: Dryer | H67: Cooling Fan | U67: Total project cost: | V67: =UpgradeEquipmentCost+UpgradeLaborCost -> 0 | CH67: Atmospheric Pressure, psia | CL67: =local_Patm(CL66) -> 14.697 | DA67: Incentive Calculation
D68: Baseline energy use: | E68: =P47 ->  | G68: =IF(ShowDryer,'Dryer Inputs and Calculations'!F59,IF(ShowDesiccantDryer,'Desiccant Dryer'!F67,"N/A")) -> N/A | H68: =IF(InstallFanVFD,'Cooling Fan VFD'!I12,"N/A") -> N/A | K68: kWh/yr | U68: Baseline project cost: | V68: =BaselineEquipmentCost+BaselineLaborCost -> 0 | CH68: CAGI Std Atmospheric Pressure, psia | CL68: 14.5 | DA68: Incentive Rate ($/kWh) | DB68: =IncentiveRateCell -> 0.33
D69: Upgrade energy use: | E69: =Y47 ->  | G69: =IF(ShowDryer,'Dryer Inputs and Calculations'!F60,IF(ShowDesiccantDryer,'Desiccant Dryer'!F68,"N/A")) -> N/A | H69: =IF(InstallFanVFD,'Cooling Fan VFD'!G28,"N/A") -> N/A | K69: kWh/yr | U69: Eligible project cost: | V69: =EstUtilEligibleCost -> 0 | CH69: scfm per acfm | CL69: =CL67/CL68 -> 1.013586207 | DA69: Incentive Cost Cap (% of cost) | DB69: =IncentiveCapCell -> 0.7
D70: Site energy savings: | E70: =E68-E69 ->  | G70: =IF(ISNUMBER(G68-G69),G68-G69,"N/A") -> N/A | H70: =IF(ISNUMBER(H68-H69),H68-H69,"N/A") -> N/A | K70: kWh/yr | U70: Estimated Utility Incentive: | V70: =IF(ISERROR(DB76),"",ROUND(DB76,2)) ->  | Y70: =IF(V70="","",IF(V70=0,"(ineligible)"," ("&TEXT(V70/V69,"##%")&" of cost)")) ->  | DA70: Site Savings (kWh) | DB70: ='Savings Calculations'!H75 -> 
D71: Busbar energy savings: | E71: =E70*BPA_Busbar_Factor ->  | G71: =IF(ISNUMBER(G70*BPA_Busbar_Factor),G70*BPA_Busbar_Factor,"N/A") -> N/A | H71: =IF(ISNUMBER(H70*BPA_Busbar_Factor),H70*BPA_Busbar_Factor,"N/A") -> N/A | K71: kWh/yr | U71: Net cost after incentives: | V71: =IF(ISERROR(V69-V70),"",V69-V70) ->  | Y71: =IF(V71="","",IF(V71="0","(ineligible)"," ("&TEXT(V71/V69,"##%")&" of cost)")) ->  | DA71: Eligible Project Cost | DB71: =V69 -> 0
P72: *Incentive is based on site savings, per the utility's request | DA72: Busbar Factor | DB72: =BPA_Busbar_Factor -> 1.11183
G73: Total Baseline Energy Use: | H73: =SUM(E68:J68) ->  | K73: kWh/yr | U73: Simple Payback | V73: =IF(ISERROR(V71/(H78+P29+P30)),"",(V71/(H78+P29+P30))) ->  | Y73: years | CE73: Double dryer error?: | CF73: =AND(ShowDesiccantDryer,ShowDryer) -> FALSE | CH73: Updated Run-Times for Cycled of Compressor | DA73: Busbar Savings | DB73: =DB70*DB72 -> 
G74: Total Upgraded Energy Use: | H74: =SUM(E69:J69) ->  | K74: kWh/yr | U74: NPV over 10 years | V74: =IF(ISERROR(PV(DiscountRate,10,-ElectricityCostSavings-NonEnergyBenefits-OandMReduction)-V69+V70),"",PV(DiscountRate,10,-ElectricityCostSavings-NonEnergyBenefits-OandMReduction)-V69+V70) ->  | CE74: Compressor Running Unloaded: | CF74: =IF(ISBLANK(D45),FALSE,D45)=0 -> FALSE | DA74: Incentive based on savings | DB74: =DB70*DB68 -> 
G75: Total site savings: | H75: =SUM(E70:J70) ->  | K75: kWh/yr | P75: For BEETS Input: | CE75: Desiccant dryer improvements? | CF75: FALSE | DA75: Incentive Based on cost cap | DB75: =DB69*DB71 -> 0
G76: % Energy savings: | H76: =SUM(E70:H70)/SUM(E68:J68) ->  | P76: Site Savings | V76: =IFERROR(H75,"") ->  | Y76: kWh | CE76: Install cooling fan VFD? | CF76: FALSE | DA76: Estimated Utility Incentive | DB76: =MIN(DB74:DB75) -> 
G77: Energy rate: | H77: =ElectricRate -> 0.0571 | K77: per kWh | P77: Project Cost | V77: =IF(V69=0,"",V69) ->  | CE77: Flow reduction? | CF77: FALSE | CH77: Is project a BPA ESI project? | CL77: TRUE | CM77: IsBPAProject
G78: Avoided energy cost: | H78: =ElectricityCostSavings ->  | K78: per year | P78: Incentive Amount | V78: =V70 ->  | CC78: Dryer add? | CF78: FALSE
B79: ='Customer Information'!B62 -> Cascade Energy, Inc. © 2007 - November-07-2023 | AA79: =ToolName&" v"&ToolVersion & " " -> BPA Small Compressed Air Calculator v5.1 | CR79: Baseline machine 100% flow corrected for difference between rated and operating pressure and site elevation: | CS79: =J19*(1+0.00075*(J24-H36))*CL69 -> 0 | CT79: scfm
CR80: Upgrade machine 100% flow corrected for difference between rated and operating pressure and site elevation: | CS80: =P19*(1+0.00075*(P24-H37))*CL69 -> 0 | CT80: scfm
CH81: Corrected flow = Rated flow x (1 + 0.00075 (Rated Pressure - Operating Pressure)*Ratio(scfm/acfm)
Q83: Corrected Baseline Power for discharge pressure | U83: =$CF$103*((-$J$24+$H$36)/250+1) -> 
Q84: Corrected Upgraded Power for discharge pressure | U84: =$CF$104*((-$P$24+$H$37)/250+1) ->  | CH84: List for combo box at E10 and G10
C85: charting | CA85: Motor efficiencies here | CE85: Motor | CF85: Motor | CH85: 1 | CI85: Screw
C86: baseline points | G86: upgrade points | Q86: Baseline kW | V86: Upgrade kW | CA86: are values for | CE86: hp | CF86: Eff | CH86: 2 | CI86: Recip
C87: % Cap | D87: % Power | G87: % Cap | H87: % Power | Q87: Cap | U87: Power | V87: Cap | W87: Power | CA87: NEMA Premium motors, | CE87: 5 | CF87: 0.895 | CH87: 3 | CI87: Rotary Vane
C88: =BZ116 ->  | G88: =BZ128 ->  | Q88: =C88*$CS$79 ->  | U88: =D88*$U$83 ->  | V88: =G88*$CS$80 ->  | W88: =H88*$U$84 ->  | CA88: which is the current | CE88: 7.5 | CF88: 0.917 | CH88: 4 | CI88: Other
CA89: NEMA standard for the | CE89: 10 | CF89: 0.917 | CR89: List for combo box at E12 and G12
CA90: "energy efficient" label. | CE90: 15 | CF90: 0.924 | CH90: List for combo box at E11 and G11
CE91: 20 | CF91: 0.93 | CH91: Baseline | CM91: below 50% | CO91: above 50% | CV91: Load/Unload | CX91: Mod w/ Unloading
C92: 0 | G92: 0 | H92: 0.15 | Q92: 0 | V92: 0 | CE92: 25 | CF92: 0.936 | CH92: # | CI92: Part Load Control Type | CM92: x0 | CN92: x1 | CO92: x0 | CP92: x1 | CQ92: 1 | CR92: Not Applicable | CT92: 1 | CV92: 0.3 | CW92: 0.7 | CX92: 0.3 | CY92: =(AVERAGE(0.84,CV92+0.5*CW92)-CX92)/0.5 -> 0.89
C93: 0 | G93: 0 | H93: 0.15 | Q93: 0 | V93: 0 | CE93: 30 | CF93: 0.936 | CH93: 1 | CI93: Inlet Modulation | CM93: 0.68 | CN93: 0.32 | CO93: 0.68 | CP93: 0.32 | CQ93: 2 | CR93: 0 psig | CT93: 2 | CU93: 0 | CV93: 0.16 | CW93: =1-CV93 -> 0.84 | CX93: =CV93 -> 0.16 | CY93: 1.1
C94: 0 | G94: 0 | H94: 0.15 | Q94: 0 | V94: 0 | CE94: 40 | CF94: 0.941 | CH94: 2 | CI94: On/Off (recips) | CM94: 0 | CN94: 1 | CO94: 0 | CP94: 1 | CQ94: 3 | CR94: 40 psig | CT94: 3 | CU94: 40 | CV94: =(0.45-0.16)/60*CU94+0.16 -> 0.3533333333 | CW94: =1-CV94 -> 0.6466666667 | CX94: =CV94 -> 0.3533333333 | CY94: 0.81
C95: baseline line | G95: upgrade line | Q95: Baseline line | V95: Upgrade Line | CE95: 50 | CF95: 0.945 | CH95: 3 | CI95: Load/Unload | CM95: =VLOOKUP(L16,$CT$92:$CY$97,3,TRUE) -> 0.3 | CN95: =VLOOKUP(L16,$CT$92:$CY$97,4,TRUE) -> 0.7 | CO95: =VLOOKUP(L16,$CT$92:$CY$97,3,TRUE) -> 0.3 | CP95: =VLOOKUP(L16,$CT$92:$CY$97,4,TRUE) -> 0.7 | CQ95: 4 | CR95: 50 psig | CT95: 4 | CU95: 50 | CV95: =(0.45-0.16)/60*CU95+0.16 -> 0.4016666667 | CW95: =1-CV95 -> 0.5983333333 | CX95: =CV95 -> 0.4016666667 | CY95: 0.7375
C96: =BX116 -> 1 | G96: =BX128 -> 1 | H96: 1.03 | Q96: =C96*$CS$79 -> 0 | U96: =D96*$U$83 ->  | V96: =G96*$CS$80 -> 0 | W96: =H96*$U$84 ->  | CE96: 60 | CF96: 0.95 | CH96: 4 | CI96: VFD | CM96: 0.15 | CN96: 0.73 | CO96: 0 | CP96: 1.03 | CQ96: 5 | CR96: 60 psig | CT96: 5 | CU96: 60 | CV96: =(0.45-0.16)/60*CU96+0.16 -> 0.45 | CW96: =1-CV96 -> 0.55 | CX96: =CV96 -> 0.45 | CY96: 0.665
C97: 0.75 | G97: 0.75 | H97: 0.7725 | Q97: 0 | V97: 0 | CE97: 75 | CF97: 0.954 | CH97: 5 | CI97: Mod w/ Unloading | CM97: =VLOOKUP(L16,$CT$92:$CY$97,5,TRUE) -> 0.3 | CN97: =VLOOKUP(L16,$CT$92:$CY$97,6,TRUE) -> 0.89 | CO97: 0.68 | CP97: 0.32 | CQ97: 6 | CR97: unknown | CT97: 6 | CV97: 0.3 | CW97: 0.7 | CX97: 0.3 | CY97: 0.89
C98: 0.51 | G98: 0.51 | H98: 0.5253 | Q98: 0 | V98: 0 | CE98: 100 | CF98: 0.954
C99: 0.5 | G99: 0.5 | H99: 0.515 | Q99: 0 | V99: 0 | CE99: 125 | CF99: 0.954 | CH99: Upgrade | CM99: below 50% | CO99: above 50%
C100: 0.49 | G100: 0.49 | H100: 0.5077 | Q100: 0 | V100: 0 | CH100: # | CI100: Part Load Control Type | CM100: x0 | CN100: x1 | CO100: x0 | CP100: x1
C101: 0.25 | G101: 0.25 | H101: 0.3325 | Q101: 0 | V101: 0 | BY101: Default calculated baseline compressor kW at full load: | CF101: =J18*0.746/VLOOKUP(J18,$CE$87:$CF$99,2,TRUE)*1.1 ->  | CH101: 1 | CI101: Inlet Modulation | CM101: 0.68 | CN101: 0.32 | CO101: 0.68 | CP101: 0.32
C102: 0 | G102: 0 | H102: 0.15 | Q102: 0 | V102: 0 | BY102: Default calculated upgrade compressor kW at full load: | CF102: =P18*0.746/VLOOKUP(P18,$CE$87:$CF$99,2,TRUE)*1.1 ->  | CH102: 2 | CI102: On/Off (recips) | CM102: 0 | CN102: 1 | CO102: 0 | CP102: 1
BY103: Full load kW to use, either default | CC103: baseline: | CF103: =IF(ISBLANK(J22),CF101,IF(AND(J22>=0.9*J18,J22<=1.18*J18),J22*0.746/VLOOKUP(J18,$CE$87:$CF$99,2,TRUE),"bhp entry is unrealistic")) ->  | CH103: 3 | CI103: Load/Unload | CM103: =VLOOKUP(Q16,$CT$92:$CY$97,3,TRUE) -> 0.3 | CN103: =VLOOKUP(Q16,$CT$92:$CY$97,4,TRUE) -> 0.7 | CO103: =VLOOKUP(Q16,$CT$92:$CY$97,3,TRUE) -> 0.3 | CP103: =VLOOKUP(Q16,$CT$92:$CY$97,4,TRUE) -> 0.7
BY104: or based on bhp, if given: | CC104: upgrade: | CF104: =IF(ISBLANK(P22),CF102,IF(AND(P22>=0.9*P18,P22<=1.18*P18),P22*0.746/VLOOKUP(P18,$CE$87:$CF$99,2,TRUE),"bhp entry is unrealistic")) ->  | CH104: 4 | CI104: VFD | CM104: 0.15 | CN104: 0.73 | CO104: 0 | CP104: 1.03
CH105: 5 | CI105: Mod w/ Unloading | CM105: =VLOOKUP(Q16,$CT$92:$CY$97,5,TRUE) -> 0.3 | CN105: =VLOOKUP(Q16,$CT$92:$CY$97,6,TRUE) -> 0.89 | CO105: 0.68 | CP105: 0.32
CC106: lookup coefficients taken
CC107: from baseline table above | CH107: % Capacity
CD108: <50% | CE108: >50% | CH108: 0 | CI108: 0.2 | CJ108: 0.3 | CK108: 0.4 | CL108: 0.5 | CM108: 0.6 | CN108: 0.7 | CO108: 0.8 | CP108: 0.9 | CQ108: 1
CA109: y-intercept | CC109: x0 | CD109: =VLOOKUP($L$15,$CH$93:$CP$97,6,TRUE) -> 0.3 | CE109: =VLOOKUP($L$15,$CH$93:$CP$97,8,TRUE) -> 0.3 | CH109: 10 | CI109: 2 | CJ109: 3 | CK109: 4 | CL109: 5 | CM109: 6 | CN109: 7 | CO109: 8 | CP109: 9 | CQ109: 10
CA110: slope | CC110: x1 | CD110: =VLOOKUP($L$15,$CH$93:$CP$97,7,TRUE) -> 0.7 | CE110: =VLOOKUP($L$15,$CH$93:$CP$97,9,TRUE) -> 0.7 | CI110: % Power Penalty
CG111: Receiver Ratio (gal/cfm) | CH111: 0 | CI111: 0.1 | CJ111: 0.11 | CK111: 0.11 | CL111: 0.095 | CM111: 0.08 | CN111: 0.065 | CO111: 0.045 | CP111: 0.02 | CQ111: 0
CH112: 1 | CI112: 0.1 | CJ112: 0.11 | CK112: 0.11 | CL112: 0.095 | CM112: 0.08 | CN112: 0.065 | CO112: 0.045 | CP112: 0.02 | CQ112: 0
CH113: 2 | CI113: 0.065 | CJ113: 0.0725 | CK113: 0.075 | CL113: 0.0675 | CM113: 0.0575 | CN113: 0.0475 | CO113: 0.035 | CP113: 0.015 | CQ113: 0
BX114: =VLOOKUP(L15,CH93:CI97,2) -> Load/Unload | BZ114: Operating | CH114: 3 | CI114: 0.03 | CJ114: 0.035 | CK114: 0.04 | CL114: 0.04 | CM114: 0.035 | CN114: 0.03 | CO114: 0.025 | CP114: 0.01 | CQ114: 0
BX115: Cap | BY115: Power | BZ115: Points | CH115: 4 | CI115: 0.0225 | CJ115: 0.0275 | CK115: 0.03 | CL115: 0.03 | CM115: 0.0275 | CN115: 0.0225 | CO115: 0.02 | CP115: 0.01 | CQ115: 0
BX116: 1 | BY116: =(IF(BX116<0.5,$CD$109+$CD$110*BX116,$CE$109+$CE$110*BX116)+IF(OR($L$15=3,$L$15=5),VLOOKUP($J$25/$J$19*IF($L$15=5,2,1),$CH$111:$CQ$121,HLOOKUP(BX116*IF($L$15=5,2,1),$CH$108:$CQ$109,2,TRUE),TRUE),0)) ->  | BZ116: =J42 ->  | CA116: =(IF(BZ116<0.5,$CD$109+$CD$110*BZ116,$CE$109+$CE$110*BZ116)+IF(OR($L$15=3,$L$15=5),VLOOKUP($J$25/$J$19*IF($L$15=5,2,1),$CH$111:$CQ$121,HLOOKUP(BZ116*IF($L$15=5,2,1),$CH$108:$CQ$109,2,TRUE),TRUE),0)) ->  | CH116: 5 | CI116: 0.015 | CJ116: 0.02 | CK116: 0.02 | CL116: 0.02 | CM116: 0.02 | CN116: 0.015 | CO116: 0.015 | CP116: 0.01 | CQ116: 0
BX117: 0.75 | BZ117: =J43 ->  | CC117: lookup coefficients taken | CH117: 6 | CI117: 0.015 | CJ117: 0.02 | CK117: 0.02 | CL117: 0.02 | CM117: 0.02 | CN117: 0.015 | CO117: 0.015 | CP117: 0.01 | CQ117: 0
BX118: 0.51 | BZ118: =J44 ->  | CC118: from upgrade table above | CH118: 7 | CI118: 0.01 | CJ118: 0.015 | CK118: 0.015 | CL118: 0.015 | CM118: 0.015 | CN118: 0.01 | CO118: 0.01 | CP118: 0.005 | CQ118: 0
BX119: 0.5 | BZ119: =J45 ->  | CD119: <50% | CE119: >50% | CH119: 8 | CI119: 0.01 | CJ119: 0.01 | CK119: 0.01 | CL119: 0.01 | CM119: 0.01 | CN119: 0.01 | CO119: 0.01 | CP119: 0.005 | CQ119: 0
BX120: 0.49 | BZ120: =J46 -> 0 | CC120: x0 | CD120: =VLOOKUP($Q$15,$CH$101:$CP$105,6,TRUE) -> 0.15 | CE120: =VLOOKUP($Q$15,$CH$101:$CP$105,8,TRUE) -> 0 | CH120: 9 | CI120: 0.005 | CJ120: 0.005 | CK120: 0.005 | CL120: 0.005 | CM120: 0.005 | CN120: 0.005 | CO120: 0.005 | CP120: 0 | CQ120: 0
BX121: 0.25 | BZ121: =L47 -> 0 | CC121: x1 | CD121: =VLOOKUP($Q$15,$CH$101:$CP$105,7,TRUE) -> 0.73 | CE121: =VLOOKUP($Q$15,$CH$101:$CP$105,9,TRUE) -> 1.03 | CH121: 10 | CI121: 0 | CJ121: 0 | CK121: 0 | CL121: 0 | CM121: 0 | CN121: 0 | CO121: 0 | CP121: 0 | CQ121: 0
BX122: 0 | BZ122: =L54 -> 0
BX126: =VLOOKUP(Q15,CH93:CI97,2) -> VFD | BZ126: Operating
BX127: Cap | BY127: Power | BZ127: Points | CH127: IndShift110 | CJ127: 1shft/5days | CK127: =8*5*52 -> 2080 | CL127: 0.5138981568 | CM127: 0.5727134746
BX128: 1 | BY128: =(IF(BX128<0.5,$CD$120+$CD$121*BX128,$CE$120+$CE$121*BX128)+IF(OR($Q$15=3,$Q$15=5),VLOOKUP($P$25/$P$19*IF($Q$15=5,2,1),$CH$111:$CQ$121,HLOOKUP(BX128*IF($Q$15=5,2,1),$CH$108:$CQ$109,2,TRUE),TRUE),0)) -> 1.03 | BZ128: =U42 ->  | CA128: =(IF(BZ128<0.5,$CD$120+$CD$121*BZ128,$CE$120+$CE$121*BZ128)+IF(OR($Q$15=3,$Q$15=5),VLOOKUP($P$25/$P$19*IF($Q$15=5,2,1),$CH$111:$CQ$121,HLOOKUP(BZ128*IF($Q$15=5,2,1),$CH$108:$CQ$109,2,TRUE),TRUE),0)) ->  | CH128: IndShift210 | CJ128: 2shft/5days | CK128: =16*5*52 -> 4160 | CL128: 0.498540184 | CM128: 0.5573555018
BX129: 0.75 | BY129: 0.7725 | CH129: IndShift310 | CJ129: 3shft/5days | CK129: =24*5*52 -> 6240 | CL129: 0.4390652871 | CM129: 0.4978806049
BX130: 0.51 | BY130: 0.5253 | CH130: FLAT-Elec10 | CJ130: Constant | CK130: =24*6*52 -> 7488 | CL130: 0.4147819788 | CM130: 0.4735972966
BX131: 0.5 | BY131: 0.515 | CK131: =H38 -> 0 | CL131: =VLOOKUP($H$38,$CK$127:$CM$130,2) ->  | CM131: =VLOOKUP($H$38,$CK$127:$CM$130,3) -> 
BX132: 0.49 | BY132: 0.5077 | BZ132: 0 | CA132: 0.15 | CL132: =CL131*H80/MIN(0.5*W80,0.15*H80) ->  | CM132: =(CM131*H80+PV(0.03,10,-P30))/W80 -> 
BX133: 0.25 | BY133: 0.3325 | BZ133: 0 | CA133: 0.15 | CL133: =IF(CL132>1,"Pass","Fail") ->  | CM133: =IF(CM132>1,"Pass","Fail") -> 
BX134: 0 | BY134: 0.15 | BZ134: =U54 -> 0 | CA134: 0.15
BY137: Compressor kW at any particular load level is calculated as full load kW times a % power factor, determined on the basis of control type and whether the part load level
BY138: is in the lower half or the upper half of the capacity range, with a second order % power penalty added - when unloading is involved - to the basic % power factor.
BY139: This adjusts for receiver capacity (gal per cfm of compressor capacity). Finally, the result is multiplied by an adjustment factor for operating pressure setpoint,
BY140: which compensates for the fact that the system operating pressure is often not the same as the rated pressure. The adjustment is 0.4% increase (decrease) in power for each psi increase
BY141: (decrease) in operating pressure, compared to rated pressure.

Sheet Dryer Inputs and Calculations (hidden)
C3: ENERGY SAVINGS CALCULATOR FOR CYCLING REFRIGERATED AIR DRYERS
D4: Customer: | E4: =IF(ISBLANK(CompanyName),"",CompanyName&": " &SiteCity&", "&SiteState) -> : ,
D5: Vendor: | E5: =VendorCompany -> 
C7: INFORMATION ABOUT THE AIR DRYERS
F9: Baseline Dryer | I9: Proposed Dryer
C10: Type of air dryer: | E10: Air-cooled non-cycling | I10: Air-cooled cycling
C11: Rated dryer capacity: | F11: 100 | H11: scfm | I11: 100 | K11: scfm
C13: Do you know the full load kW? | T13: Baseline Types | W13: upgrade types
C14: If yes, enter full load kW | F14: 0.65 | H14: kW | I14: 0.61 | K14: kW | T14: Air-cooled non-cycling | W14: Air-cooled cycling
T15: Water-cooled non-cycling | W15: Water-cooled cycling
E16: Dryer inlet air pressure: | F16: ='Savings Calculations'!H37 -> 0 | G16: psig
E17: Compressor and dryer located: | F17: indoors
E18: Ambient air temp near compressor: | F18: 85 | G18: °F | T18: indoors | W18: Location | AA18: Season | AB18: Shift | AC18: Bin | AD18: DB °F
E19: Estimated dryer inlet air temp: | F19: =IF(BaselineType=T14,InsideAirTemp+15,InsideAirTemp+25)+ IF(IndoorOutdoorSelection="outdoors",T35,0) -> 100 | G19: °F | H19: =IF(BaselineType=T14,"(15 °F CDT from localized ambient)","(25 °F CDT from localized ambient)") -> (15 °F CDT from localized ambient) | T19: outdoors | W19: ID - Boise | AA19: winter | AB19: 1 | AC19: 1 | AD19: =INDEX(Weather!$A$1:$F$493,MATCH(WeatherLocation,Weather!$A$1:$A$493,0)+AC19-1,6) -> 
W20: ID - Idaho Falls | AA20: winter | AB20: 2 | AC20: 2 | AD20: =INDEX(Weather!$A$1:$F$493,MATCH(WeatherLocation,Weather!$A$1:$A$493,0)+AC20-1,6) -> 
E21: Corrected1 dryer capacity: | F21: =IF(ISNUMBER(T28),T28,"") -> 48.84319303 | H21: scfm | I21: =IF(ISNUMBER(T29),T29,"") -> 48.84319303 | K21: scfm | W21: ID - Lewiston | AA21: winter | AB21: 3 | AC21: 3 | AD21: =INDEX(Weather!$A$1:$F$493,MATCH(WeatherLocation,Weather!$A$1:$A$493,0)+AC21-1,6) -> 
D22: Note 1: Corrected capacity includes adjustment for ambient temperature as well as dryer inlet air temperature and pressure. | W22: ID - Malad City | AA22: spring | AB22: 1 | AC22: 4 | AD22: =INDEX(Weather!$A$1:$F$493,MATCH(WeatherLocation,Weather!$A$1:$A$493,0)+AC22-1,6) -> 
C23: INFORMATION ABOUT THE AIR COMPRESSOR | W23: ID - Pocatello | AA23: spring | AB23: 2 | AC23: 5 | AD23: =INDEX(Weather!$A$1:$F$493,MATCH(WeatherLocation,Weather!$A$1:$A$493,0)+AC23-1,6) -> 
W24: ID - Salmon | AA24: spring | AB24: 3 | AC24: 6 | AD24: =INDEX(Weather!$A$1:$F$493,MATCH(WeatherLocation,Weather!$A$1:$A$493,0)+AC24-1,6) -> 
E25: Total compressor hp feeding dryer: | F25: ='Savings Calculations'!P18 -> 0 | H25: hp | R25: Inlet air pressure correction: | T25: =F16^3*'Correction Factors'!L18+'Dryer Inputs and Calculations'!F16^2*'Correction Factors'!L17 +'Dryer Inputs and Calculations'!F16*inlet_p_intercept +inlet_p_slope -> 0.4219336838 | W25: OR - Astoria | AA25: summer | AB25: 1 | AC25: 7 | AD25: =INDEX(Weather!$A$1:$F$493,MATCH(WeatherLocation,Weather!$A$1:$A$493,0)+AC25-1,6) -> 
E26: Total rated flow: | F26: ='Savings Calculations'!P19 -> 0 | H26: acfm | R26: Inlet air temp correction: | T26: =F19^3*'Correction Factors'!E18+'Dryer Inputs and Calculations'!F19^2*'Correction Factors'!E17+'Dryer Inputs and Calculations'!F19*'Correction Factors'!E16+'Correction Factors'!E15 -> 1.001249364 | W26: OR - Baker City | AA26: summer | AB26: 2 | AC26: 8 | AD26: =INDEX(Weather!$A$1:$F$493,MATCH(WeatherLocation,Weather!$A$1:$A$493,0)+AC26-1,6) -> 
E27: Site elevation above sea level: | F27: ='Savings Calculations'!J20 -> 0 | H27: ft | R27: inside ambient corr.: | T27: =InsideAirTemp*ambient_slope+ambient_intercept -> 1.156159087 | W27: OR - Bend | AA27: summer | AB27: 3 | AC27: 9 | AD27: =INDEX(Weather!$A$1:$F$493,MATCH(WeatherLocation,Weather!$A$1:$A$493,0)+AC27-1,6) -> 
E28: Corrected flow: | F28: ='Savings Calculations'!CS80 -> 0 | H28: scfm | R28: Corrected Baseline capacity: | T28: =BaselineRating*(T26*T39*T25) -> 48.84319303 | W28: OR - Burns | AA28: fall | AB28: 1 | AC28: 10 | AD28: =INDEX(Weather!$A$1:$F$493,MATCH(WeatherLocation,Weather!$A$1:$A$493,0)+AC28-1,6) -> 
R29: Corrected Upgrade capacity | T29: =UpgradeRating*(T26*T39*T25) -> 48.84319303 | W29: OR - Corvallis | AA29: fall | AB29: 2 | AC29: 11 | AD29: =INDEX(Weather!$A$1:$F$493,MATCH(WeatherLocation,Weather!$A$1:$A$493,0)+AC29-1,6) -> 
C30: INFORMATION ABOUT THE SYSTEM AND ITS OPERATION | W30: OR - Eugene | AA30: fall | AB30: 3 | AC30: 12 | AD30: =INDEX(Weather!$A$1:$F$493,MATCH(WeatherLocation,Weather!$A$1:$A$493,0)+AC30-1,6) -> 
R31: Assumption: facility operates year-round | W31: OR - Klamath Falls
E32: Annual hours of operation: | F32: ='Savings Calculations'!H38 -> 0 | H32: hours/yr | R32: number of shifts: | T32: =IF(F32>6000,3,IF(F32<3000,1,2)) -> 1 | W32: OR - Medford
R33: average ambient temp | W33: OR - Pendleton
C34: Profile of Compressed Air Demand for EEM Compressor | R34: during hours of operation: | T34: =IF(T32=3,AVERAGE(AD19:AD30),IF(T32=2,AVERAGE(AD19:AD20,AD22:AD23,AD25:AD26,AD28:AD29),AVERAGE(AD19,AD22,AD25,AD28))) ->  | U34: °F | W34: OR - Portland
H35: Baseline Dryer Energy Use | L35: Upgrade Dryer Energy Use | R35: delta from ambient: | T35: 15 | U35: °F | W35: OR - Roseburg
C36: % time | D36: % flow | E36: hrs/yr | F36: scfm | H36: % Load | I36: kW | J36: kWh/yr | L36: % Load | M36: kW | N36: kWh/yr | R36: ambient temp at dryer: | T36: =T35+T34 ->  | U36: °F | W36: OR - The Dalles
C37: ='Savings Calculations'!C42 -> 0 | D37: ='Savings Calculations'!U42 ->  | E37: =IF(C37="","",$F$32*C37) -> 0 | F37: =D37*$F$28 ->  | H37: =IF(D37="","",F37/$F$21) ->  | I37: =IF(H37="","",MIN((H37*'Operating Power'!$Y$13+'Operating Power'!$Y$14)*BaselinekW,BaselinekW)) ->  | J37: =IF(E37="","",I37*E37) ->  | L37: =IF(D37="","",F37/$I$21) ->  | M37: =IF(L37="","",MIN((L37*'Operating Power'!$Y$27+'Operating Power'!$Y$28)*UpgradekW,UpgradekW)) ->  | N37: =IF(M37="",0,M37*E37) ->  | R37: outside correction factor | T37: =T36*ambient_slope+ambient_intercept ->  | W37: UT - Delta
C38: ='Savings Calculations'!C43 -> 0 | D38: ='Savings Calculations'!U43 ->  | E38: =IF(C38="","",$F$32*C38) -> 0 | F38: =D38*$F$28-FlowReductionEEM*'Savings Calculations'!$R43 ->  | H38: =IF(D38="","",F38/$F$21) ->  | I38: =IF(H38="","",MIN((H38*'Operating Power'!$Y$13+'Operating Power'!$Y$14)*BaselinekW,BaselinekW)) ->  | J38: =IF(E38="","",I38*E38) ->  | L38: =IF(D38="","",F38/$I$21) ->  | M38: =IF(L38="","",MIN((L38*'Operating Power'!$Y$27+'Operating Power'!$Y$28)*UpgradekW,UpgradekW)) ->  | N38: =IF(M38="",0,M38*E38) ->  | W38: UT - Hanksville
C39: ='Savings Calculations'!C44 -> 0 | D39: ='Savings Calculations'!U44 ->  | E39: =IF(C39="","",$F$32*C39) -> 0 | F39: =D39*$F$28-FlowReductionEEM*'Savings Calculations'!$R44 ->  | H39: =IF(D39="","",F39/$F$21) ->  | I39: =IF(H39="","",MIN((H39*'Operating Power'!$Y$13+'Operating Power'!$Y$14)*BaselinekW,BaselinekW)) ->  | J39: =IF(E39="","",I39*E39) ->  | L39: =IF(D39="","",F39/$I$21) ->  | M39: =IF(L39="","",MIN((L39*'Operating Power'!$Y$27+'Operating Power'!$Y$28)*UpgradekW,UpgradekW)) ->  | N39: =IF(M39="",0,M39*E39) ->  | R39: actual ambient correction factor: | T39: =IF(IndoorOutdoorSelection="indoors",T27,T37) -> 1.156159087 | W39: UT - Moab
C40: ='Savings Calculations'!C45 -> 0 | D40: ='Savings Calculations'!U45 ->  | E40: =IF(C40="","",$F$32*C40) -> 0 | F40: =D40*$F$28-FlowReductionEEM*'Savings Calculations'!$R45 ->  | H40: =IF(D40="","",F40/$F$21) ->  | I40: =IF(H40="","",MIN((H40*'Operating Power'!$Y$13+'Operating Power'!$Y$14)*BaselinekW,BaselinekW)) ->  | J40: =IF(E40="","",I40*E40) ->  | L40: =IF(D40="","",F40/$I$21) ->  | M40: =IF(L40="","",MIN((L40*'Operating Power'!$Y$27+'Operating Power'!$Y$28)*UpgradekW,UpgradekW)) ->  | N40: =IF(M40="",0,M40*E40) ->  | W40: UT - Ogden
C41: =SUM(C37:C40) -> 0 | E41: =SUM(E37:E40) -> 0 | I41: Total: | J41: =ROUND(SUM(J37:J40),0) ->  | M41: Total: | N41: =ROUND(SUM(N37:N40),0) ->  | Q41: No longer used, elevation is linked to compressor inputs pages | W41: UT - Provo
Q42: Elevation, feet | U42: =F27 -> 0 | W42: UT - Saint George
Q43: Atmospheric Pressure, psia | U43: =local_Patm(U42) -> 14.697 | W43: UT - Salt Lake City
Q44: CAGI Std Atmospheric Pressure, psia | U44: 14.5 | W44: UT - Vernal
Q45: scfm per acfm | U45: =U43/U44 -> 1.013586207 | W45: UT -Wendover
W46: WA - Bellingham
U47: machine room temps | W47: WA - Kelso
Q48: rated outlet dew point is 33 - 39 °F | U48: 70 | W48: WA - Moses Lake
U49: 75 | W49: WA - Pasco
U50: 80 | W50: WA - Quillayute
U51: 85 | W51: WA - Seattle
U52: 90 | W52: WA - Snohomish
U53: 95 | W53: WA - Spokane
U54: 100 | W54: WA - Tacoma
U55: 105 | W55: WA - Walla Walla
U56: 110 | W56: WA - Wenatchee
C57: DRYER UPGRADE ENERGY SAVINGS ESTIMATE | U57: 115 | W57: WA - Yakima
U58: 120 | W58: WY - Casper
E59: Baseline energy use: | F59: =J41 ->  | G59: kWh/yr | J59: Demand savings: | L59: =IF(F61=0,"",ROUND((F61/E41)*0.75,1)) ->  | M59: kW/mo | W59: WY - Cody
E60: Upgrade energy use: | F60: =N41 ->  | G60: kWh/yr
E61: Annual site savings: | F61: =F59-F60 ->  | G61: kWh/yr
E62: % site savings: | F62: =IF(F59=0,"",F61/F59*100) ->  | G62: %
B64: ='Customer Information'!B62 -> Cascade Energy, Inc. © 2007 - November-07-2023 | N64: =TODAY() -> 2024-07-31

Sheet Desiccant Dryer (hidden)
C3: ENERGY SAVINGS CALCULATOR FOR DESICCANT AIR DRYERS
D4: Customer: | E4: =IF(ISBLANK(CompanyName),"",CompanyName&": " &SiteCity&", "&SiteState) -> : , | T4: indoors
D5: Vendor: | E5: =VendorCompany ->  | Q5: =SiteState ->  | T5: outdoors
C7: INFORMATION ABOUT THE AIR DRYERS
T8: Dryer Types | U8: Default Purge Rate
F9: Baseline Dryer | I9: Proposed Dryer | T9: Heatless | U9: 0.15
C10: Type of air dryer: | T10: Heated Purge | U10: 0.075
C11: Dewpoint controls?: | T11: Blower Purge | U11: 0.02
C12: Rated dryer capacity: | H12: scfm | K12: scfm
C13: Heater Power: | H13: kW | K13: kW
C14: Blower Power: | H14: kW | K14: kW | T14: Part-Load Coefficients
U15: No Dewpoint Controls | V15: With Dewpoint Controls | W15: Baseline | X15: Upgrade
C16: Do you know the average purge rate (scfm)? | T16: Dryer purge rate at 0% Capacity: | U16: 1 | V16: 0.1 | W16: =IF($F$11="Yes",V16,U16) -> 1 | X16: =IF($I$11="Yes",V16,U16) -> 1
C17: If yes, enter full load purge scfm | F17: 187.5 | H17: scfm | I17: 24 | K17: scfm | T17: Part-load slope: | U17: =1-U16 -> 0 | V17: =1-V16 -> 0.9 | W17: =IF($F$11="Yes",V17,U17) -> 0 | X17: =IF($I$11="Yes",V17,U17) -> 0
C18: Percent flow in purge: | F18: =BaselinePurge/BaselineSCFM ->  | I18: =UpgradePurge/UpgradeSCFM ->  | AA18: Season | AB18: Shift | AC18: Bin | AD18: DB °F
AA19: winter | AB19: 1 | AC19: 1 | AD19: =INDEX(Weather!$A$1:$F$493,MATCH(WeatherLocationDesiccant,Weather!$A$1:$A$493,0)+AC19-1,6) -> 
E20: Dryer inlet air pressure: | F20: ='Savings Calculations'!H37 -> 0 | G20: psig | AA20: winter | AB20: 2 | AC20: 2 | AD20: =INDEX(Weather!$A$1:$F$493,MATCH(WeatherLocationDesiccant,Weather!$A$1:$A$493,0)+AC20-1,6) -> 
E21: Compressor and dryer located: | AA21: winter | AB21: 3 | AC21: 3 | AD21: =INDEX(Weather!$A$1:$F$493,MATCH(WeatherLocationDesiccant,Weather!$A$1:$A$493,0)+AC21-1,6) -> 
E22: Ambient air temp near compressor: | G22: °F | AA22: spring | AB22: 1 | AC22: 4 | AD22: =INDEX(Weather!$A$1:$F$493,MATCH(WeatherLocationDesiccant,Weather!$A$1:$A$493,0)+AC22-1,6) -> 
E23: Estimated dryer inlet air temp: | F23: =InsideAirTemperature+25 -> 25 | G23: °F | H23: 25 °F CDT from localized ambient | W23: Location | AA23: spring | AB23: 2 | AC23: 5 | AD23: =INDEX(Weather!$A$1:$F$493,MATCH(WeatherLocationDesiccant,Weather!$A$1:$A$493,0)+AC23-1,6) -> 
W24: ID - Boise | AA24: spring | AB24: 3 | AC24: 6 | AD24: =INDEX(Weather!$A$1:$F$493,MATCH(WeatherLocationDesiccant,Weather!$A$1:$A$493,0)+AC24-1,6) -> 
E25: Corrected1 dryer capacity: | F25: =T28 -> 0 | H25: scfm | I25: =T29 -> 0 | K25: scfm | R25: Inlet air pressure correction: | T25: =Local_LinInterp(W73:W80,X73:X80,F20,1,0) -> 0.7831005882 | W25: ID - Idaho Falls | AA25: summer | AB25: 1 | AC25: 7 | AD25: =INDEX(Weather!$A$1:$F$493,MATCH(WeatherLocationDesiccant,Weather!$A$1:$A$493,0)+AC25-1,6) -> 
D26: Note 1: Corrected capacity includes adjustment for ambient temperature as well as dryer inlet air temperature and pressure. | R26: Inlet air temp correction: | T26: =Local_LinInterp(Z73:Z78,AA73:AA78,F23,1,0) -> 1.073495447 | W26: ID - Lewiston | AA26: summer | AB26: 2 | AC26: 8 | AD26: =INDEX(Weather!$A$1:$F$493,MATCH(WeatherLocationDesiccant,Weather!$A$1:$A$493,0)+AC26-1,6) -> 
C27: INFORMATION ABOUT THE AIR COMPRESSOR | R27: inside ambient corr.: | W27: ID - Malad City | AA27: summer | AB27: 3 | AC27: 9 | AD27: =INDEX(Weather!$A$1:$F$493,MATCH(WeatherLocationDesiccant,Weather!$A$1:$A$493,0)+AC27-1,6) -> 
R28: Corrected Baseline capacity: | T28: =BaselineSCFM*(T26*T25) -> 0 | W28: ID - Pocatello | AA28: fall | AB28: 1 | AC28: 10 | AD28: =INDEX(Weather!$A$1:$F$493,MATCH(WeatherLocationDesiccant,Weather!$A$1:$A$493,0)+AC28-1,6) -> 
E29: Total compressor hp feeding dryer: | F29: ='Savings Calculations'!P18 -> 0 | H29: hp | R29: Corrected Upgrade capacity | T29: =UpgradeSCFM*(T26*T25) -> 0 | W29: ID - Salmon | AA29: fall | AB29: 2 | AC29: 11 | AD29: =INDEX(Weather!$A$1:$F$493,MATCH(WeatherLocationDesiccant,Weather!$A$1:$A$493,0)+AC29-1,6) -> 
E30: Total rated flow: | F30: ='Savings Calculations'!P19 -> 0 | H30: acfm | W30: OR - Astoria | AA30: fall | AB30: 3 | AC30: 12 | AD30: =INDEX(Weather!$A$1:$F$493,MATCH(WeatherLocationDesiccant,Weather!$A$1:$A$493,0)+AC30-1,6) -> 
E31: Site elevation above sea level: | F31: ='Savings Calculations'!J20 -> 0 | H31: ft | W31: OR - Baker City
E32: Corrected flow: | F32: ='Savings Calculations'!CS80 -> 0 | H32: scfm | W32: OR - Bend
W33: OR - Burns
C34: INFORMATION ABOUT THE SYSTEM AND ITS OPERATION | W34: OR - Corvallis
W35: OR - Eugene
C36: Profile of Compressed Air Demand for EEM Compressor | H36: Annual hours of operation: | L36: ='Savings Calculations'!H38 -> 0 | M36: hours/yr | W36: OR - Klamath Falls
W37: OR - Medford
C38: % time | D38: % flow | E38: hrs/yr | F38: scfm | W38: OR - Pendleton
C39: ='Savings Calculations'!C42 -> 0 | D39: ='Savings Calculations'!S42 ->  | E39: =IF(C39="","",$L$36*C39) -> 0 | F39: =D39*$F$32 ->  | W39: OR - Portland
C40: ='Savings Calculations'!C43 -> 0 | D40: ='Savings Calculations'!S43 ->  | E40: =IF(C40="","",$L$36*C40) -> 0 | F40: =D40*$F$32-FlowReductionEEM*'Savings Calculations'!$R45 ->  | W40: OR - Roseburg | AA40: machine room temps
C41: ='Savings Calculations'!C44 -> 0 | D41: ='Savings Calculations'!S44 ->  | E41: =IF(C41="","",$L$36*C41) -> 0 | F41: =D41*$F$32-FlowReductionEEM*'Savings Calculations'!$R46 ->  | W41: OR - The Dalles | AA41: 70
C42: ='Savings Calculations'!C45 -> 0 | D42: ='Savings Calculations'!S45 ->  | E42: =IF(C42="","",$L$36*C42) -> 0 | F42: =D42*$F$32-FlowReductionEEM*'Savings Calculations'!$R47 ->  | W42: UT - Delta | AA42: 75
C43: =SUM(C39:C42) -> 0 | E43: =SUM(E39:E42) -> 0 | W43: UT - Hanksville | AA43: 80
W44: UT - Moab | AA44: 85
C45: BASELINE DRYER OPERATION | W45: UT - Ogden | AA45: 90
W46: UT - Provo | AA46: 95
C47: Total Compressor Flow | D47: User Flow | E47: Purge Air Flow | F47: Dryer Percent Capacity | G47: Dryer Purge Requirement | I47: Heater Power | K47: Blower Power | M47: Heater/Blower Energy | W47: UT - Saint George | AA47: 100
C48: scfm | D48: scfm | E48: scfm | F48: % | G48: % | I48: kW | K48: kW | M48: kWh/yr | W48: UT - Salt Lake City | AA48: 105
C49: =F39 ->  | D49: =(C49-BaselinePurge*$W$16)/(($W$17*BaselinePurge/$F$25)+1) ->  | E49: =C49-D49 ->  | F49: =D49/$F$25 ->  | G49: =$W$16+$W$17*F49 ->  | I49: =$F$13*0.7*0.8*G49 ->  | K49: =$F$14*0.7*0.8*G49 ->  | M49: =E39*(I49+K49) ->  | W49: UT - Vernal | AA49: 110
C50: =F40 ->  | D50: =(C50-BaselinePurge*$W$16)/(($W$17*BaselinePurge/$F$25)+1) ->  | E50: =C50-D50 ->  | F50: =D50/$F$25 ->  | G50: =$W$16+$W$17*F50 ->  | I50: =$F$13*0.7*0.8*G50 ->  | K50: =$F$14*0.7*0.8*G50 ->  | M50: =E40*(I50+K50) ->  | W50: UT -Wendover | AA50: 115
C51: =F41 ->  | D51: =(C51-BaselinePurge*$W$16)/(($W$17*BaselinePurge/$F$25)+1) ->  | E51: =C51-D51 ->  | F51: =D51/$F$25 ->  | G51: =$W$16+$W$17*F51 ->  | I51: =$F$13*0.7*0.8*G51 ->  | K51: =$F$14*0.7*0.8*G51 ->  | M51: =E41*(I51+K51) ->  | W51: WA - Bellingham | AA51: 120
C52: =F42 ->  | D52: =(C52-BaselinePurge*$W$16)/(($W$17*BaselinePurge/$F$25)+1) ->  | E52: =C52-D52 ->  | F52: =D52/$F$25 ->  | G52: =$W$16+$W$17*F52 ->  | I52: =$F$13*0.7*0.8*G52 ->  | K52: =$F$14*0.7*0.8*G52 ->  | M52: =E42*(I52+K52) ->  | W52: WA - Kelso
L53: Total: | M53: =SUM(M49:N52) ->  | W53: WA - Moses Lake
W54: WA - Pasco
C55: UPGRADE DRYER OPERATION | W55: WA - Quillayute
W56: WA - Seattle
C57: User Flow | D57: Dryer Percent Capacity | E57: Dryer Purge Requirement | F57: Purge Air Flow | G57: Total Compressor Flow | I57: Flow Reduction | J57: Heater Power | L57: Blower Power | N57: Heater/ Blower Energy | W57: WA - Snohomish
C58: scfm | D58: % | E58: % | F58: scfm | G58: scfm | I58: scfm | J58: kW | L58: kW | N58: kWh/yr | W58: WA - Spokane
C59: =D49 ->  | D59: =C59/$I$25 ->  | E59: =$X$16+$X$17*D59 ->  | F59: =E59*UpgradePurge ->  | G59: =C59+F59 ->  | I59: =C49-G59 ->  | J59: =$I$13*0.7*0.8*E59 ->  | L59: =$I$14*0.7*0.8*E59 ->  | N59: =E39*(J59+L59) ->  | W59: WA - Tacoma
C60: =D50 ->  | D60: =C60/$I$25 ->  | E60: =$X$16+$X$17*D60 ->  | F60: =E60*UpgradePurge ->  | G60: =C60+F60 ->  | I60: =C50-G60 ->  | J60: =$I$13*0.7*0.8*E60 ->  | L60: =$I$14*0.7*0.8*E60 ->  | N60: =E40*(J60+L60) ->  | W60: WA - Walla Walla
C61: =D51 ->  | D61: =C61/$I$25 ->  | E61: =$X$16+$X$17*D61 ->  | F61: =E61*UpgradePurge ->  | G61: =C61+F61 ->  | I61: =C51-G61 ->  | J61: =$I$13*0.7*0.8*E61 ->  | L61: =$I$14*0.7*0.8*E61 ->  | N61: =E41*(J61+L61) ->  | W61: WA - Wenatchee
C62: =D52 ->  | D62: =C62/$I$25 ->  | E62: =$X$16+$X$17*D62 ->  | F62: =E62*UpgradePurge ->  | G62: =C62+F62 ->  | I62: =C52-G62 ->  | J62: =$I$13*0.7*0.8*E62 ->  | L62: =$I$14*0.7*0.8*E62 ->  | N62: =E42*(J62+L62) ->  | W62: WA - Yakima
M63: Total: | N63: =SUM(N59:N62) ->  | W63: WY - Casper
W64: WY - Cody
C65: DRYER UPGRADE ENERGY SAVINGS ESTIMATE
E67: Baseline energy use: | F67: =M53 ->  | G67: kWh/yr
E68: Upgrade energy use: | F68: =N63 ->  | G68: kWh/yr
B70: ='Customer Information'!B62 -> Cascade Energy, Inc. © 2007 - November-07-2023 | N70: =TODAY() -> 2024-07-31
W72: Inlet Pressure | X72: Correction Factor | Z72: Inlet Temperature | AA72: Correction Factor
W73: 80 | X73: 0.7831005882 | Z73: 90 | AA73: 1.073495447
W74: 90 | X74: 0.8903891799 | Z74: 100 | AA74: 1
W75: 100 | X75: 1 | Z75: 110 | AA75: 0.8292208304
W76: 110 | X76: 1.090797426 | Z76: 120 | AA76: 0.6901878963
W77: 120 | X77: 1.198089804 | Z77: 130 | AA77: 0.5653201135
W78: 130 | X78: 1.28358003 | Z78: 140 | AA78: 0.4557187582
W79: 140 | X79: 1.381063144
W80: 150 | X80: 1.43821171

Sheet Explanation of Inputs
B2: FALSE
D4: EXPLANATION OF INPUTS
G5: Customer: | I5: =IF(ISBLANK(CompanyName),"",CompanyName&": " &SiteCity&", "&SiteState) -> : ,
G6: Vendor: | I6: =VendorCompany -> 
D8: HOURS OF OPERATION
D9: Please explain how the hours of operation was determined
D16: EXPLANATION OF COMPRESSOR LOAD PROFILE
D17: Please describe how the compressed air demand profile in the savings calculation was estimated.
D32: BENEFITS IN ADDITION TO ENERGY SAVINGS
D33: If a figure for non-energy benefits is entered in the Savings Calculations, please describe how this value was quantified.
D48: EXPLANATION OF PROJECT COSTS
D49: This space is provided to detail the project costs. Project costs summed here will appear on the "Savings Calculations" tab.
E51: No. | F51: Supplier | L51: Description | AC51: Amount*
E52: 1
E53: 2
E54: 3
E55: 4
E56: 5
E57: 6
E58: 7
E59: 8
E60: 9
E61: 10
E62: 11
E63: 12
E64: 13
E65: 14
E66: 15
E67: 16
E68: 17
E69: 18
E70: 19
E71: 20
E72: 21
E73: Total Cost: | AC73: =SUM(AC52:AE72) -> 0
E74: * For baseline costs, enter "Baseline" at the beginning of the description and enter a negative cost. For upgrade costs, enter "Upgrade" at the beginning of the description and enter a positive cost.
B76: ='Customer Information'!B62 -> Cascade Energy, Inc. © 2007 - November-07-2023 | AG76: =ToolName&" - "&ToolVersion -> BPA Small Compressed Air Calculator - 5.1
D120: TO APPLY FOR INCENTIVES FROM ENERGY TRUST OF OREGON: | AG120: for Energy Trust Projects
E121: 1) | F121: Enter the information requested above about Participant, Project, Vendor, baseline compressor, proposed
F122: new compressor, operating characteristics of the system, and assumptions. | AR122: FALSE
E123: 2) | F123: Send this Excel file as an email attachment to smallindustrial@energytrust.org. Include a copy of the proposal
F124: or quotation for the new compressor.
E125: 3) | F125: Energy Trust will review inputs and outputs and call with any questions. Upon approval, Energy Trust will then
F126: provide an offer of funding for review and acceptance by Participant. If the Oregon BETC box is checked,
F127: a partially-completed BETC application will also be provided.
E128: 4) | F128: Participant completes the entries in the Energy Trust agreement, signs, and returns the agreement to Energy
F129: Trust. If applying for BETC, Participant completes the entries in the BETC application, signs, and sends with
F130: application fee to Oregon Department of Energy in Salem.
E131: 5) | F131: Order equipment and schedule the installation. When installation is complete, notify Energy Trust as well as
F132: ODOE. Each agency has its own brief process to close out the project and issue payment or final certification.
D140: TO APPLY FOR INCENTIVES FROM YOUR LOCAL ELECTRIC UTILITY: | AG140: for Oregon, non-Energy Trust projects
E141: 1) | F141: Contact the utility that provides electric service to the project site and inquire about incentives for
F142: compressed air. Discuss this tool and what role it may play in analyzing the savings for a compressed
F143: air project. The utility's incentive rate and cap figures will be needed as inputs above.
E144: 2) | F144: Enter the information requested about Participant, Project, Vendor, baseline compressor, proposed
F145: new compressor, operating characteristics of the system, and assumptions.
E146: 3) | F146: Send this Excel file as an email attachment to the local utility. Include a copy of the proposal or
F147: quotation for the new compressor. A printout of this analysis may also be used to apply for
F148: the Business Energy Tax Credit (BETC) administered by the Oregon Department of Energy.
E149: 4) | F149: The utility will review inputs and outputs, call with any questions, and request any additional
F150: documentation that may be necessary. An incentive agreement or application form provided by the
F151: utility will be completed at this point.
E152: 5) | F152: Once the funding agreement is in place, equipment may be ordered and installed. Please note that
F153: utilities will not offer funding for projects in which equipment has been ordered prior to signing an
F154: agreement.
E155: 6) | F155: When installation is complete, notify the utility and follow the utility-specific closeout process.
F156: An inspection may be required before the incentive check is issued. | AN156: Reason for project:
AR157: TRUE | AS157: =IF(AR157,10,1) -> 10 | AT157: Replace working compressor
AR158: FALSE | AS158: =IF(AR158,10,2) -> 2 | AT158: End of life compressor replacement
AR159: FALSE | AS159: =IF(AR159,10,3) -> 3 | AT159: Add capacity to existing system
D160: TO APPLY FOR INCENTIVES FROM YOUR LOCAL ELECTRIC UTILITY: | AG160: for non-Oregon projects | AR160: TRUE | AS160: =IF(AR160,10,4) -> 10 | AT160: New compressor in new facility
E161: 1) | F161: Contact the utility that provides electric service to the project site and inquire about incentives for | AS161: =IF(AND(NOT(AR157),NOT(AR158),NOT(AR159),NOT(AR160)),10,5) -> 5 | AT161: unknown
F162: compressed air. Discuss this tool and what role it may play in analyzing the savings for a compressed | AT162: =VLOOKUP(10,AS157:AT161,2,FALSE) -> Replace working compressor
F163: air project. The utility's incentive rate and cap figures will be needed as inputs above.
E164: 2) | F164: Enter the information requested about Participant, Project, Vendor, baseline compressor, proposed
F165: new compressor, operating characteristics of the system, and assumptions.
E166: 3) | F166: Send this Excel file as an email attachment to the local utility. Include a copy of the proposal or
F167: quotation for the new compressor.
E168: 4) | F168: The utility will review inputs and outputs, call with any questions, and request any additional
F169: documentation that may be necessary. An incentive agreement or application form provided by the
F170: utility will be completed at this point.
E171: 5) | F171: Once the funding agreement is in place, equipment may be ordered and installed. Note that utilities
F172: will not offer funding for projects where equipment has been ordered prior to signing an agreement.
E173: 6) | F173: When installation is complete, notify the utility and follow the utility-specific closeout process.
F174: An inspection may be required before the incentive check is issued.
D179: BLANK CELLS IN THE NEXT 20 LINES FOR CLEARING INSTRUCTIONS.

Sheet Master Outputs (hidden)
A1: ASSEMBLY AREA FOR VALUES TO BE TRANSFERRED TO OUTPUT SHEETS, FORMS, AND APPLICATION TEMPLATES
A2: Participant Information | B2: Values Transferred | C2: Range Names | K2: Choices for Business Type:
A3: Contact Name: | B3: =IF('Customer Information'!D10=0,"",'Customer Information'!D10) ->  | C3: ContactName | E3: orange type | F3: VBA inserts the value | K3: Agriculture, Forestry, Fishing and Hunting | L3: 1 | O3: Revision History
A4: Last Name: | B4: =IF(ISERR(FIND(" ",ContactName,1+FIND(" ",ContactName))),MID(ContactName,FIND(" ",ContactName)+1,LEN(ContactName)),MID(ContactName,1+FIND(" ",ContactName,1+FIND(" ",ContactName)),LEN(ContactName))) ->  | C4: LastName | E4: blue type | F4: the cell has undergone a special intermediary formatting step | K4: Crop Production | O4: V2.00 | Q4: Initial Release
A5: Title: | B5: =IF($L$3=2,"Ms.","Mr.") -> Mr. | C5: ContactGender | E5: violet type | F5: the cell is hard coded | K5: Greenhouse | O5: V2.01 | P5: 2009-06-12 | Q5: Fixed C/E checker cell B203
A6: Title: | B6: =IF('Customer Information'!R10=0,"",'Customer Information'!R10) ->  | C6: Title | E6: green background | F6: cell is a named range filled by copying a value from the tool | K6: Field Crops | O6: V2.01 | P6: 2009-06-12 | Q6: Merged cells for explanation of Inputs field
A7: Company Name: | B7: =IF('Customer Information'!D8=0,"",'Customer Information'!D8) ->  | C7: CompanyName | E7: orange type | F7: cell is named range filled by VBA in tool | K7: Indoor Agriculture | O7: V2.01 | P7: 2009-06-12 | Q7: Created print area around C/E checker
A8: Mailing Address: | B8: =IF('Customer Information'!D12=0,"",'Customer Information'!D12) ->  | C8: MailStreet | E8: grey background | F8: cell is named range filled by calculation - used by DocMaker, common to all tools | K8: Animal Production and Aquaculture | O8: V2.01 | P8: 2009-06-12 | Q8: Changed many fields that reported "0" to ""
A9: City: | B9: =IF('Customer Information'!R12=0,"",'Customer Information'!R12) ->  | C9: MailCity | E9: no background | F9: cell is used for interim calculations - tool specific may be named or unnamed | K9: Forestry and Logging | O9: V2.01 | P9: 2009-06-12 | Q9: Fixed format on Estimated Energy Savings to "#,###"
A10: State: | B10: =IF('Customer Information'!Z12=0,"",'Customer Information'!Z12) ->  | C10: MailState | E10: yellow background | F10: cell is hand entered every time | K10: Support Activities for Agriculture and Forestry | O10: V2.01 | P10: 2009-06-16 | Q10: Fixed fix of 12 June - Company Name was referencing Contact when blank
A11: Zip: | B11: =IF('Customer Information'!AC12=0,"",'Customer Information'!AC12) ->  | C11: MailZip | E11: orange background | F11: review this cell - it may at times need a manual entry | K11: Mining, Quarrying, and Oil and Gas Extraction | O11: V2.01 | P11: 2009-06-16 | Q11: added reference to Version 2.01 at bottom of Customer Information and Savings Calcs pages
A12: Site Address: | B12: =IF(IF(ISBLANK('Customer Information'!D23),'Customer Information'!D12,'Customer Information'!D23)=0,"",IF(ISBLANK('Customer Information'!D23),'Customer Information'!D12,'Customer Information'!D23)) ->  | C12: SiteStreet | E12: light blue background | F12: provides the name of the cell immediately to the left | K12: Oil and Gas Extraction | O12: V2.02 | P12: 2009-06-25 | Q12: changed "show license agmt" so it shows every time upon opening file (for BPA purposes)
A13: Site City: | B13: =IF(IF(ISBLANK('Customer Information'!Q23),'Customer Information'!R12,'Customer Information'!Q23)=0,"",IF(ISBLANK('Customer Information'!Q23),'Customer Information'!R12,'Customer Information'!Q23)) ->  | C13: SiteCity | K13: Mining (except Oil and Gas) | O13: V2.02 | P13: 2009-06-25 | Q13: left WA and "other" utility boxes checked in read only version so Energy Trust rates do not show upon opening
A14: Site State: | B14: =IF(ISBLANK('Customer Information'!Z23),MailState,'Customer Information'!Z23) ->  | C14: SiteState | K14: Support Activities for Mining | O14: V2.02 | P14: 2009-06-25 | Q14: changed the Energy Trust rates that show to 25 cents and 60% (from 20 cents and 50%)
A15: Site Zip: | B15: =IF(IF(ISBLANK('Customer Information'!AC23),'Customer Information'!AC12,'Customer Information'!AC23)=0,"",IF(ISBLANK('Customer Information'!AC23),'Customer Information'!AC12,'Customer Information'!AC23)) ->  | C15: SiteZip | K15: Utilities | O15: V2.03 | P15: 2009-06-29 | Q15: Added VBA so that focus moves to "existing system pressure" cell rather than jumping far down
A16: County: | B16: =IF(ISBLANK('Customer Information'!D25),"",'Customer Information'!D25) -> Lane | C16: SiteCounty | K16: Electric Power Generation, Transmission and Distribution | Q16: and to the right when user leaves the non-energy-benefit cell.
A17: Tel or Cell Phone: | B17: =IF('Customer Information'!C14=0,"",'Customer Information'!C14) ->  | C17: TelOrCell | K17: Natural Gas Distribution | O17: V2.04 | P17: 2010-02-15 | Q17: Change Energy Trust cap from 60% to 50% in VB Module for Customer Information at top.
A18: Fax: | B18: =IF('Customer Information'!I14=0,"",'Customer Information'!I14) ->  | C18: Fax | K18: Water, Sewage and Other Systems | Q18: Change "Eligible for 60%" pulldowns in line 200 to "No"
A19: Email: | B19: =IF('Customer Information'!O14=0,"",'Customer Information'!O14) ->  | C19: ContactEmail | K19: Water Supply Systems | Q19: Change copyright notice & date in footer of Savings Calculations and Customer Information pages
A20: Today's Date (presumed date of doc prep): | B20: =TEXT(NOW(),"mmmm d,yyyy") -> July 31,2024 | C20: DateOfPrep (today's date) | K20: Sewage Treatment Facilities | O20: V2.05 | P20: 2010-03-19 | Q20: BPA Credit & Cost Effectiveness calculator added by Tom Eckman.
K21: Manufacturing | Q21: Cell B48 goes by two names: kWhSavings and BETCElectricitySavedkWh
A22: Account Information | K22: Food Manufacturing | Q22: Instructions for creating the PTR upload file added.
A23: Utility Name: | C23: UtilityName | E23: GasUtilityName | K23: Beverage and Tobacco Product Manufacturing | O23: V2.1 | Q23: Updated ETO CE Checker
A24: Rate: | K24: Brewery | O24: V2.2 | Q24: Updates to Master Outputs for DocMaker 2 compatibility
A25: Account Number: | B25: =IF(LEN(TEXT('Customer Information'!Q21,"#"))>2,'Customer Information'!Q21,"") -> 10170 | C25: UtilAccountNumber | K25: Winery | Q25: Added ETO Bonus calculation
A26: Type of Industry: | B26: =IF('Customer Information'!M25=0,"",'Customer Information'!M25) ->  | C26: IndustryType | K26: Textile Mills | Q26: Removed incentive rate auto-fill for BPA utilities
A27: Reason for Project: | B27: ='Customer Information'!AT142 -> Replace working compressor | C27: ReasonForProject | K27: Apparel Manufacturing | Q27: Removed BETC Calculations
K28: Leather and Allied Product Manufacturing | O28: V2.3 | P28: 2011-11-23 | Q28: fixed compatibility issues between excel 2003 and 2010
A29: Vendor Information | K29: Wood Product Manufacturing | P29: 2010-11-23 | Q29: added legal language in pop-up form
A30: Vendor Company: | B30: =IF('Customer Information'!D36=0,"",'Customer Information'!D36) ->  | C30: VendorCompany | K30: Paper Manufacturing | P30: 2010-11-29 | Q30: fixed license agreement pop-up and cleaned up admin buttons
A31: Sales Representative: | B31: =IF('Customer Information'!P36=0,"",'Customer Information'!P36) ->  | C31: SalesRep | K31: Printing and Related Support Activities
A32: Tel/Cell: | B32: =IF('Customer Information'!Y36=0,"",'Customer Information'!Y36) ->  | C32: VendorTel | K32: Petroleum and Coal Products Manufacturing | O32: V2.4 | P32: 2010-11-22 | Q32: Added cycling dryer analysis as an extra page
K33: Chemical Manufacturing | Q33: Updated cost inputs and savings outputs to reflect user-selected cycling dryer info
A34: Incentive Information | K34: Plastics and Rubber Products Manufacturing | Q34: Added admin buttons to protect and unprotect book
B35: =IncentiveRateCell -> 0.33 | C35: UtilityIncentiveRate | K35: Nonmetallic Mineral Product Manufacturing | P35: 2010-11-29 | Q35: Added language specific to cycling dryer replacement to the "installed" and "BETC" fields on the transition sheet
A36: Incentive Cap: | B36: =IncentiveCapCell -> 0.7 | C36: UtilityIncentiveCap | K36: Glass | P36: 2011-04-11 | Q36: Added cooling fan VFD and demand reduction calculations
A37: Amount of Federal Funding: | B37: ='Customer Information'!V31 -> 0 | C37: FederalFunding | K37: Concrete | P37: 2011-12-20 | Q37: Removed "Project Summary" macro and reference text (this caused issues with old verions of MSOffice due to the use of the Word Object Library.
K38: Primary Metal Manufacturing | Q38: Changed Bonus Incentive to "Kick Start Bonus"
A39: Project Energy Detail | B39: Electricity | K39: Fabricated Metal Product Manufacturing | Q39: Removed extra captions under Reason for Project on the Customer Information tab
A40: Baseline Energy Use, energy unit | B40: =SUM('Savings Calculations'!E68:H68) ->  | C40: BaselineElectricityKwh | K40: Machinery Manufacturing | Q40: Changed ETO gas incentive to $2.00
A41: Baseline Energy Use, MMBTU | B41: =BaselineElectricityKwh*3413/1000000 ->  | C41: BetcBaselineElectricityMMBTU | K41: Computer and Electronic Product Manufacturing | P41: 2012-01-06 | Q41: Bonus Text was updated to reflect KB bonus vs. FB bonus
A42: Upgrade Energy Use, energy unit | B42: =SUM('Savings Calculations'!E69:H69) ->  | C42: UpgradeElectricityKwh | K42: Electrical Equipment, Appliance, and Component Manufacturing | O42: v2.5 | P42: 2012-03-05 | Q42: Added data input on cover page
A43: Upgrade Energy Use, MMBTU | B43: =UpgradeElectricityKwh*3413/1000000 ->  | C43: BetcUpgradeElectricityMMBTU | K43: Transportation Equipment Manufacturing | Q43: Added cost summary table on explanation of inputs
A44: Energy Saved, energy unit | B44: =BaselineElectricityKwh-UpgradeElectricityKwh ->  | C44: kWhSaved, ALSO BetcElectricitySavedKwh | K44: Furniture and Related Product Manufacturing | Q44: Fixed some minor protection macro issues from v2.4
A45: Energy Saved, MMBTU | B45: =BetcBaselineElectricityMMBTU-BetcUpgradeElectricityMMBTU ->  | C45: BetcElectricitySavedMMBTU | K45: Refrigerated Warehousing and Storage | N45: Never officially released this version | O45: v2.6 | P45: 2012-03-22 | Q45: Added Calculator type and sector to PTR upload file
A46: Busbar Energy Saved, kWh | B46: =(BaselineElectricityKwh-UpgradeElectricityKwh)*B50 ->  | C46: BusbarElectricitySavedkWh | K46: Waste Management and Remediation Services | Q46: Changed all references of PTR to EE Central.
A47: Energy Cost per Energy unit | B47: =ElectricRate -> 0.0571 | C47: ElectricityRate | K47: Other Industrial Services | Q47: Updated EE Central output code to include additional items.
A48: Value of Energy Savings | B48: =(BaselineElectricityKwh-UpgradeElectricityKwh)*ElectricityRate ->  | C48: ElectricityCostSavings | K48: Repair and Maintenance | Q48: Added Technical review section starting in cells D211 on Customer information tab.
A49: Value Gas and Electric Savings | B49: =ElectricityCostSavings+BetcValueGasSavings ->  | C49: ValueGasElectricSavings | K49: Industrial Laundry Services | Q49: Added code to each State Check box to populate the site state when box is changed.
A50: Busbar Multiplier for BPA projects | B50: =BPA_Busbar_Factor -> 1.11183 | C50: LnLossAdj | Q50: - The old code only changed when the user selected another tab
A51: Energy savings Text | B51: =IF(BETCElectricitySavedkWh=0,CONCATENATE(TEXT(BetcGasSavedTherms,"#,###")," "," therms"),CONCATENATE(TEXT(BETCElectricitySavedkWh,"#,###"),""," kWh")) ->  | C51: EnergySavingsText | O51: v2.7 | P51: 2012-04-24 | Q51: Change the BPA cost/benefit ratio from 0.1 to 0.5
P52: 2012-07-02 | Q52: Changed data validation on O&M and Non-energy benefits to allow for negative values.
A53: Project Economic Detail | Q53: Removed references to Energy Trust Kick-Start Bonus.
A54: Baseline Equipment Cost | B54: ='Savings Calculations'!J26 -> 0 | C54: BaselineEquipmentCost | Q54: Energy Trust Bonus code commented out in VBA
A55: Baseline Installation, Shipping Cost: | B55: ='Savings Calculations'!J27 -> 0 | C55: BaselineLaborCost | Q55: Energy Trust bonus hardcoded to False
A56: BETC Total Baseline Cost | B56: =BaselineEquipmentCost+BaselineLaborCost -> 0 | C56: BetcTotalBaselineCost | F56: Text for Project Name based on selected Measures | Q56: Energy Trust check box moved from main page to master outputs (near B170).
A57: Upgraded EquipmentCost | B57: ='Savings Calculations'!P26 -> 0 | C57: UpgradeEquipmentCost | F57: =ShowDryer -> FALSE | G57: Cycling Air Dryer | H57: This represents the text associated with the Dryer measure | Q57: Added Upgrade compressor time-out option
A58: Upgrade Installation, Shipping Cost | B58: ='Savings Calculations'!P27 -> 0 | C58: UpgradeLaborCost | F58: =InstallFanVFD -> FALSE | G58: Cooling Fan VFD | H58: This represents the text associated with the Cooling Fan VFD measure | Q58: If a value of 0% flow is added to the table additional rows are surfaced to allow for the user to enter a new % unloaded vs. % timed-out breakdown
A59: Energy Trust/Utility Eligible Cost | B59: =(UpgradeEquipmentCost+UpgradeLaborCost)-(BaselineEquipmentCost+BaselineLaborCost) -> 0 | C59: EstUtilEligibleCost | F59: =FlowReductionEEM -> FALSE | G59: Flow Reduction | H59: This represents the text associated with the Flow Reduction Measure measure | Q59: This changes the annual hours for the last operating bin.
O60: v3.0 | P60: 2014-03-04 | Q60: Fixed issue with cooling fan VFD savings. If user entered 8760 hrs and used the timeout to zero out unpressurized hours (off time) the
F61: =IF(AND(F57:F59),", "&G57&", "&G58&", and "&G59,F62) ->  | G61: ←When measures are toggled this cell will popluate with the correct text to add to the project name cell | H61: =F61 ->  | Q61: savings would overpredict. Made it so this method of specifying time would give same kWh fan savings as the usual method of making the entried.
F62: =IF(AND(F57:F58),", "&G57&", and "&G58,F63) ->  | H62: =F62 ->  | Q62: Added "Prepared by" field.
F63: =IF(AND(F58:F59),", "&G58&", and "&G59,F64) ->  | Q63: Changed copyright to 2014
F64: =IF(AND(F57,F59),", "&G57&", and "&G59,F65) ->  | Q64: Removed hardwired code that fills in BPA incentive rate and cap because utilities will vary.
F65: =IF(F57," and "&G57,F66) ->  | Q65: Removed hardwired code that fills in PacifiCorp incentive rate and cap because cap varies among states.
F66: =IF(F58," and "&G58,F67) ->  | Q66: Added one year payback incentive constraint for Pacific Power and Rocky Mountain Power projects.
F67: =IF(F59," and "&G59,"") ->  | Q67: Added rounding of baseline and upgrade kWh values to the nearest kWh.
Q68: Added rounding of incentive amount to nearest cent.
O69: v3.0 | P69: 2014-05-29 | Q69: Commented out the note that would appear "Energy savings includes BPA line loss factor." in 6 places.
Q70: The savings with the line loss multiplier used to appear in a separate cell, but it has not done so for a while. So the note is misleading. Got rid of it.
A71: Annual value of non-energy benefits: | B71: ='Savings Calculations'!$P$30 -> 0 | C71: NonEnergyBenefits | Q71: Kept version number at v3.0 as requested by Erin 5/29/14.\
A72: Annual reduction in operating and maintenance costs: | B72: ='Savings Calculations'!$P$29 -> 0 | C72: OandMReduction | O72: v3.01 | P72: 2014-08-07 | Q72: Added Access Data and updated protection. (KS)
A73: Assumed customer discount rate: | B73: 0.05 | C73: DiscountRate | D73: (hard coded value - change manually) | O73: v3.1 | P73: 2014-12-30 | Q73: Updated CE for new avoided Costs, discount rate, added revision history for avoided costs per Ted Light's request
A74: Project name: | B74: =IF(AND(F57:F59),"Compressed Air Upgrades","Air Compressor"&F61&" Upgrade") -> Air Compressor Upgrade | C74: ProjectName | O74: V3.2 | P74: 2015-07-27 | Q74: Added Business Type Chooser for Energy Trust. Revised AccessData tab for SharePoint integration
A75: Tool name: | B75: BPA Small Compressed Air Calculator | C75: ToolName | D75: (hard coded value - change manually) | O75: V3.3 | P75: 2015-09-04 | Q75: Fixed Protection issue with Business Type selection box.
A76: Tool version: | B76: 5.1 | C76: ToolVersion | D76: (hard coded value - change manually) | O76: v3.4 | P76: 2015-01-06 | Q76: Updated the C/E Calculator for the 2016 A/C. Added additional named ranges to make calcs easier to follow. Changed max incentive for $499,999 (from $500,000). Adjusted incentive calcs to calc incentive if a project had both electric and gas savings and the customer is self-directed.
A77: Measure name: | B77: ='Savings Calculations'!P18&" hp "&VLOOKUP('Savings Calculations'!Q15,'Savings Calculations'!$CH$93:$CI$97,2)&" air compressor" -> hp VFD air compressor | C77: MeasureName | O77: v3.5 | P77: 2016-03-11 | Q77: Updated the NPV of the "other savings" to reflect the actual discount rate. The cell was referencing a blank cell.
A78: Date of last Revision | B78: 2023-11-07 | C78: Tool_Revision_Date | N78: Doug Heredos | O78: V4.0 | P78: 2019-07-25 | Q78: Added BPA list of utilities as a drop down w/lookup to BES. Added notice if tool has not been through technical review. Removed hours-of-operation calculator and updated cost table. Added "BPA" to version number to prevent future confusion.
N79: Doug Heredos | O79: V5.0 | P79: 2023-07-31 | Q79: Added desiccant dryer. Removed references to other utility programs. Greatly simplified Master Outputs Page. Changed BPA busbar factor from 1.09056 to 1.11183
N80: Doug Heredos | O80: V5.1 | P80: 2023-11-07 | Q80: Corrected a hardcoded busbar factor. Corrected error that would allow load to be negative on Savings Calcs U42-U45 when a dessicant dryer is installed. This was causing an error on the fan VFD savings page.
A82: BPA Busbar Factor | B82: 1.11183
A91: BPA Utility Lookup | E91: Used on Customer Information Tab
A92: EWEB | C92: BES_Number | E92: Industry Type | F92: Sector List
A93: Choose Utility | B93: Description | E93: Generic Plant with One Shift | F93: Industrial
A94: Albion | B94: City of Albion | C94: 10055 | E94: Generic Plant with Two Shifts | F94: Commercial
A95: Alder | B95: Alder Mutual Light Company | C95: 10005 | E95: Generic Plant with Three Shifts | F95: Agricultural
A96: Ashland | B96: City of Ashland | C96: 10057 | E96: Chemical Processing
A97: Asotin PUD | B97: Public Utility District No. 1 of Asotin County | C97: 10015 | E97: Food Processing
A98: Bandon | B98: City of Bandon | C98: 10059 | E98: Lumber & Wood Products
A99: Benton PUD | B99: Public Utility District No. 1 of Benton County | C99: 10024 | E99: NonDSI Primary Metals
A100: Benton REA | B100: Benton Rural Electric Association | C100: 10025 | E100: Petroleum Refining
A101: Big Bend | B101: Big Bend Electric Cooperative | C101: 10027 | E101: Primary Aluminum Smelting
A102: Blachly-Lane | B102: Blachly-Lane Electric Cooperative | C102: 10029 | E102: Pulp & Paper
A103: Blaine | B103: City of Blaine | C103: 10061 | E103: Transportation
A104: Bonners Ferry | B104: City of Bonners Ferry | C104: 10062 | E104: Industrial - Other
A105: BPA | B105: Bonneville Power Administration | C105: 13738
A106: Burley | B106: City of Burley | C106: 10064
A107: Canby | B107: Canby Utility Board | C107: 10044
A108: Cascade Locks | B108: City of Cascade Locks | C108: 10065
A109: CEC | B109: Central Electric Cooperative, Inc. | C109: 10046
A110: Central Lincoln | B110: Central Lincoln People's Utility District | C110: 10047
A111: Centralia | B111: City of Centralia | C111: 10066
A112: Cheney | B112: City of Cheney | C112: 10067
A113: Chewelah | B113: City of Chewelah | C113: 10068
A114: Clallam | B114: Public Utility District No. 1 of Clallam County | C114: 10101
A115: Clark | B115: Clark Public Utilities | C115: 10103
A116: Clatskanie | B116: Clatskanie People's Utility District | C116: 10105
A117: Clearwater | B117: Clearwater Power Company | C117: 10106
A118: Columbia Basin | B118: Columbia Basin Electric Cooperative, Inc. | C118: 10109
A119: Columbia Power | B119: Columbia Power Cooperative Association | C119: 10111
A120: Columbia REA | B120: Columbia Rural Electric Association | C120: 10113
A121: Columbia River | B121: Columbia River People's Utility District | C121: 10112
A122: Consolidated | B122: Consolidated Irrigation District No. 19 | C122: 10116
A123: Consumers | B123: Consumers Power, Inc. | C123: 10118
A124: Coos-Curry | B124: Coos-Curry Electric Cooperative, Inc. | C124: 10121
A125: Coulee Dam | B125: Town of Coulee Dam | C125: 10378
A126: Cowlitz | B126: Public Utility District No. 1 of Cowlitz County | C126: 10123
A127: Declo | B127: City of Declo | C127: 10070
A128: DOE-RL | B128: US Department of Energy - Richland Operations Office | C128: 10426
A129: Douglas Elec | B129: Douglas Electric Cooperative, Inc. | C129: 10136
A130: Drain | B130: City of Drain | C130: 10071
A131: East End | B131: East End Mutual Electric Company, LTD | C131: 10142
A132: Eatonville | B132: Town of Eatonville | C132: 10144
A133: Ellensburg | B133: City of Ellensburg | C133: 10072
A134: Elmhurst | B134: Elmhurst Mutual Power & Light Company | C134: 10156
A135: Emerald | B135: Emerald People's Utility District | C135: 10157
A136: Energy Northwest | B136: Energy Northwest | C136: 10158
A137: EWEB | B137: Eugene Water & Electric Board | C137: 10170
A138: Fairchild | B138: Fairchild Air Force Base | C138: 10172
A139: Fall River | B139: Fall River Rural Electric Cooperative, Inc. | C139: 10173
A140: Farmers | B140: Farmers Electric Company, LTD | C140: 10174
A141: Ferry | B141: Public Utility District No. 1 of Ferry County | C141: 10177
A142: Flathead | B142: Flathead Electric Cooperative, Inc. | C142: 10179
A143: Forest Grove | B143: City of Forest Grove | C143: 10074
A144: Franklin County | B144: Public Utility District No. 1 of Franklin County | C144: 10183
A145: Glacier | B145: Glacier Electric Cooperative, Inc. | C145: 10186
A146: Grant | B146: Public Utility District No. 2 of Grant County, Washington | C146: 10190
A147: Grays Harbor | B147: Public Utility District No. 1 of Grays Harbor County Washington | C147: 10191
A148: Harney | B148: Harney Electric Cooperative, Inc. | C148: 10197
A149: Hermiston | B149: City of Hermiston | C149: 10597
A150: Heyburn | B150: City of Heyburn | C150: 10076
A151: Hood River | B151: Hood River Electric Cooperative | C151: 10202
A152: Idaho County | B152: Idaho County Light & Power Cooperative Association, Inc. | C152: 10203
A153: Idaho Falls Power | B153: City of Idaho Falls | C153: 10204
A154: Inland | B154: Inland Power & Light Company | C154: 10209
A155: Jefferson | B155: Public Utility District No.1 of Jefferson County | C155: 12026
A156: Kittitas | B156: Public Utility District No. 1 of Kittitas County | C156: 10230
A157: Klickitat | B157: Public Utility District No. 1 of Klickitat County | C157: 10231
A158: Kootenai | B158: Kootenai Electric Cooperative, Inc. | C158: 10234
A159: KTU | B159: Kalispel Indian Community of the Kalispel Reservation | C159: 13927
A160: Lakeview | B160: Lakeview Light & Power Company | C160: 10235
A161: Lane Electric | B161: Lane Electric Cooperative, Inc. | C161: 10236
A162: Lewis | B162: Public Utility District No. 1 of Lewis County | C162: 10237
A163: Lincoln | B163: Lincoln Electric Cooperative, Inc. | C163: 10239
A164: Lost River | B164: Lost River Electric Cooperative, Inc. | C164: 10242
A165: Lower Valley | B165: Lower Valley Energy, Inc. | C165: 10244
A166: Mason Co 1 | B166: Public Utility District No. 1 of Mason County | C166: 10246
A167: Mason Co 3 | B167: Public Utility District No. 3 of Mason County | C167: 10247
A168: McCleary | B168: City of McCleary | C168: 10078
A169: McMinnville | B169: The City of McMinnville | C169: 10079
A170: Midstate | B170: Midstate Electric Cooperative, Inc. | C170: 10256
A171: Milton | B171: City of Milton | C171: 10080
A172: Milton-Freewater | B172: City of Milton-Freewater | C172: 10081
A173: Minidoka | B173: City of Minidoka | C173: 10082
A174: Mission Valley | B174: Mission Valley Power | C174: 10258
A175: Missoula | B175: Missoula Electric Cooperative, Inc. | C175: 10259
A176: Modern | B176: Modern Electric Water Company | C176: 10260
A177: Monmouth | B177: City of Monmouth | C177: 10083
A178: Nespelem | B178: Nespelem Valley Electric Cooperative, Inc. | C178: 10273
A179: NETL | B179: US DOE Natl Energy Technology Lab | C179: 10406
A180: Northern Lights | B180: Northern Lights, Inc. | C180: 10278
A181: Northern Wasco | B181: Northern Wasco County People's Utility District | C181: 10279
A182: Ohop | B182: Ohop Mutual Light Company | C182: 10284
A183: Okanogan Coop | B183: Okanogan County Electric Cooperative, Inc. | C183: 10285
A184: Okanogan PUD | B184: Okanogan County Public Utility District No. 1 | C184: 10286
A185: OPALCO | B185: Orcas Power & Light Cooperative | C185: 10288
A186: Oregon Trail | B186: Oregon Trail Electric Consumers Cooperative, Inc. | C186: 10291
A187: Pacific | B187: Public Utility District No. 2 of Pacific County | C187: 10294
A188: Parkland | B188: Parkland Light & Water Company | C188: 10304
A189: Pend Oreille | B189: Pend Oreille County PUD No. 1 | C189: 10306
A190: Peninsula | B190: Peninsula Light Company | C190: 10307
A191: Plummer | B191: City of Plummer | C191: 10086
A192: PNGC | B192: Pacific Northwest Generating Cooperative | C192: 10298
A193: Port | B193: Port of Seattle - Seattle-Tacoma International Airport | C193: 10706
A194: Port Angeles | B194: City of Port Angeles | C194: 10087
A195: Raft River | B195: Raft River Rural Electric Cooperative, Inc. | C195: 10331
A196: Ravalli County | B196: Ravalli County Electric Cooperative, Inc. | C196: 10333
A197: Richland | B197: City of Richland, Washington | C197: 10089
A198: Riverside Electric | B198: Riverside Electric Company, LTD | C198: 10338
A199: Rupert | B199: City of Rupert | C199: 10091
A200: Salem | B200: Salem Electric | C200: 10342
A201: Salmon River | B201: Salmon River Electric Cooperative, Inc. | C201: 10343
A202: Seattle | B202: City of Seattle, City Light Dept | C202: 10349
A203: Skamania | B203: Public Utility District #1 of Skamania County | C203: 10352
A204: Snohomish PUD | B204: Public Utility District No. 1 Of Snohomish County | C204: 10354
A205: Soda Springs | B205: City of Soda Springs | C205: 10094
A206: South Side | B206: South Side Electric, Inc. | C206: 10360
A207: Springfield | B207: Springfield Utility Board | C207: 10363
A208: Steilacoom | B208: Town of Steilacoom | C208: 10379
A209: Sumas | B209: City of Sumas | C209: 10095
... 26 more rows

Sheet Cooling Fan VFD (hidden)
C7: Assumptions: | H7: Baseline
C8: Baseline Fan motor hp: | D8: ='Savings Calculations'!J32 -> 2 | E8: hp
C9: Upgrade fan motor hp: | D9: ='Savings Calculations'!P32 -> 2 | E9: hp | H9: run hours: | I9: =SUM('Savings Calculations'!E42:F45) -> 0 | J9: hrs
C10: Estimated load factor: | D10: 0.85 | H10: Power: | I10: =D8*0.746*D10/D12 -> 1.493098324 | J10: kW
C11: Motor Family | D11: efficient
C12: Fan motor efficiency: | D12: =Local_MotorEfficiency(D9,D11,D10) -> 0.8493747395 | H12: energy: | I12: =ROUND(I10*I9,0) -> 0 | J12: kWh/yr
C13: VFD exponent: | D13: 2.7
C14: VFD efficiency: | D14: 0.97 | H14: upgrade power: | I14: =D9*0.746*D10/D12 -> 1.493098324
C15: minimum VFD speed | D15: 0.2
C17: Design temperature: | D17: 100 | E17: F | F17: (100 F is standard design temp)
C18: Average ambient temperature: | D18: 70 | E18: F | F18: (conservative estimate for PNW)
C19: normal air discharge temp: | D19: 140 | E19: F | F19: (from conversation with Jeff Yarnell of Rodgers')
C20: Temperature correction factor: | D20: =1-(1-((D19-D17)/(D19-D18)))/4 -> 0.8928571429 | F20: (conservative estimate - takes the average temperature difference from discharge over design temperature difference and discounts by a factor of 4)
B22: UPGRADE
B23: Bin | C23: hrs/yr | D23: load | E23: Fan speed | F23: Fan power (kW) | G23: Fan energy (kWh/yr)
B24: 1 | C24: ='Savings Calculations'!E42 -> 0 | D24: ='Savings Calculations'!U42 ->  | E24: =(D24*$D$20*(1-$D$15) + $D$15) ->  | F24: =$I$14*E24^$D$13/$D$14 ->  | G24: =F24*C24 -> 
B25: 2 | C25: ='Savings Calculations'!E43 -> 0 | D25: ='Savings Calculations'!U43 ->  | E25: =(D25*$D$20*(1-$D$15) + $D$15) ->  | F25: =$I$14*E25^$D$13/$D$14 ->  | G25: =F25*C25 -> 
B26: 3 | C26: ='Savings Calculations'!E44 -> 0 | D26: ='Savings Calculations'!U44 ->  | E26: =(D26*$D$20*(1-$D$15) + $D$15) ->  | F26: =$I$14*E26^$D$13/$D$14 ->  | G26: =F26*C26 -> 
B27: 4 | C27: ='Savings Calculations'!E45 -> 0 | D27: ='Savings Calculations'!U45 ->  | E27: =(D27*$D$20*(1-$D$15) + $D$15) ->  | F27: =$I$14*E27^$D$13/$D$14 ->  | G27: =F27*C27 -> 
B28: sum | C28: =SUM(C24:C27) -> 0 | G28: =ROUND(SUM(G24:G27),0) -> 
F31: savings: | G31: =I12-G28 ->  | H31: kWh/yr
B34: BASELINE - NOT USED | D34: The question here is does the fan load factor change with the compressor % load? For baseline I say no, the fan is on and running at the same load regardless of heat load or compressor capacity
B35: Bin | C35: hrs/yr | D35: load | F35: Fan power (kW) | G35: Fan energy (kWh/yr)
B36: 1 | C36: ='Savings Calculations'!E42 -> 0 | D36: ='Savings Calculations'!U42 ->  | F36: =$D$8*0.746*D36/$D$12 ->  | G36: =F36*C36 -> 
B37: 2 | C37: ='Savings Calculations'!E43 -> 0 | D37: ='Savings Calculations'!U43 ->  | F37: =$D$8*0.746*D37/$D$12 ->  | G37: =F37*C37 -> 
B38: 3 | C38: ='Savings Calculations'!E44 -> 0 | D38: ='Savings Calculations'!U44 ->  | F38: =$D$8*0.746*D38/$D$12 ->  | G38: =F38*C38 -> 
B39: 4 | C39: ='Savings Calculations'!E45 -> 0 | D39: ='Savings Calculations'!U45 ->  | F39: =$D$8*0.746*D39/$D$12 ->  | G39: =F39*C39 -> 
B40: sum | C40: =SUM(C36:C39) -> 0 | G40: =SUM(G36:G39) -> 

Sheet Weather (hidden)
B1: Location | C1: Season | D1: Shift | E1: Bin | F1: DB °F
A2: =IF(B2=B1,"",B2) -> OR - Astoria | B2: OR - Astoria | C2: winter | D2: 1 | E2: 1 | F2: 48.87525
A3: =IF(B3=B2,"",B3) ->  | B3: OR - Astoria | C3: winter | D3: 2 | E3: 2 | F3: 45.498
B4: OR - Astoria | C4: winter | D4: 3 | E4: 3 | F4: 41.784
B5: OR - Astoria | C5: spring | D5: 1 | E5: 4 | F5: 57.16835165
B6: OR - Astoria | C6: spring | D6: 2 | E6: 5 | F6: 52.49626374
B7: OR - Astoria | C7: spring | D7: 3 | E7: 6 | F7: 49.04041209
B8: OR - Astoria | C8: summer | D8: 1 | E8: 7 | F8: 65.06203804
B9: OR - Astoria | C9: summer | D9: 2 | E9: 8 | F9: 59.47005435
B10: OR - Astoria | C10: summer | D10: 3 | E10: 9 | F10: 55.69567935
B11: OR - Astoria | C11: fall | D11: 1 | E11: 10 | F11: 51.243125
B12: OR - Astoria | C12: fall | D12: 2 | E12: 11 | F12: 47.01190217
B13: OR - Astoria | C13: fall | D13: 3 | E13: 12 | F13: 44.15709239
A14: OR - Baker City | B14: OR - Baker City | C14: winter | D14: 1 | E14: 1 | F14: 36.51125
B15: OR - Baker City | C15: winter | D15: 2 | E15: 2 | F15: 30.55175
B16: OR - Baker City | C16: winter | D16: 3 | E16: 3 | F16: 25.8905
B17: OR - Baker City | C17: spring | D17: 1 | E17: 4 | F17: 60.57549451
B18: OR - Baker City | C18: spring | D18: 2 | E18: 5 | F18: 51.09434066
B19: OR - Baker City | C19: spring | D19: 3 | E19: 6 | F19: 43.40304945
B20: OR - Baker City | C20: summer | D20: 1 | E20: 7 | F20: 77.32869565
B21: OR - Baker City | C21: summer | D21: 2 | E21: 8 | F21: 64.35915761
B22: OR - Baker City | C22: summer | D22: 3 | E22: 9 | F22: 52.69608696
B23: OR - Baker City | C23: fall | D23: 1 | E23: 10 | F23: 44.87660326
B24: OR - Baker City | C24: fall | D24: 2 | E24: 11 | F24: 35.54766304
B25: OR - Baker City | C25: fall | D25: 3 | E25: 12 | F25: 30.03002717
A26: OR - Bend | B26: OR - Bend | C26: winter | D26: 1 | E26: 1 | F26: 50.402
B27: OR - Bend | C27: winter | D27: 2 | E27: 2 | F27: 47.20425
B28: OR - Bend | C28: winter | D28: 3 | E28: 3 | F28: 43.856
B29: OR - Bend | C29: spring | D29: 1 | E29: 4 | F29: 57.88711538
B30: OR - Bend | C30: spring | D30: 2 | E30: 5 | F30: 52.79618132
B31: OR - Bend | C31: spring | D31: 3 | E31: 6 | F31: 49.56607143
B32: OR - Bend | C32: summer | D32: 1 | E32: 7 | F32: 63.54671196
B33: OR - Bend | C33: summer | D33: 2 | E33: 8 | F33: 58.27095109
B34: OR - Bend | C34: summer | D34: 3 | E34: 9 | F34: 54.69442935
B35: OR - Bend | C35: fall | D35: 1 | E35: 10 | F35: 53.51464674
B36: OR - Bend | C36: fall | D36: 2 | E36: 11 | F36: 48.36923913
B37: OR - Bend | C37: fall | D37: 3 | E37: 12 | F37: 45.9901087
A38: OR - Burns | B38: OR - Burns | C38: winter | D38: 1 | E38: 1 | F38: 38.219
B39: OR - Burns | C39: winter | D39: 2 | E39: 2 | F39: 32.17275
B40: OR - Burns | C40: winter | D40: 3 | E40: 3 | F40: 26.446
B41: OR - Burns | C41: spring | D41: 1 | E41: 4 | F41: 60.44568681
B42: OR - Burns | C42: spring | D42: 2 | E42: 5 | F42: 52.18868132
B43: OR - Burns | C43: spring | D43: 3 | E43: 6 | F43: 42.08815934
B44: OR - Burns | C44: summer | D44: 1 | E44: 7 | F44: 75.1711413
B45: OR - Burns | C45: summer | D45: 2 | E45: 8 | F45: 63.82282609
B46: OR - Burns | C46: summer | D46: 3 | E46: 9 | F46: 51.30866848
B47: OR - Burns | C47: fall | D47: 1 | E47: 10 | F47: 43.48673913
B48: OR - Burns | C48: fall | D48: 2 | E48: 11 | F48: 34.5319837
B49: OR - Burns | C49: fall | D49: 3 | E49: 12 | F49: 29.18896739
A50: OR - Pendleton | B50: OR - Pendleton | C50: winter | D50: 1 | E50: 1 | F50: 41.9525
B51: OR - Pendleton | C51: winter | D51: 2 | E51: 2 | F51: 38.16025
B52: OR - Pendleton | C52: winter | D52: 3 | E52: 3 | F52: 34.4245
B53: OR - Pendleton | C53: spring | D53: 1 | E53: 4 | F53: 64.12184066
B54: OR - Pendleton | C54: spring | D54: 2 | E54: 5 | F54: 57.32486264
B55: OR - Pendleton | C55: spring | D55: 3 | E55: 6 | F55: 50.0989011
B56: OR - Pendleton | C56: summer | D56: 1 | E56: 7 | F56: 77.30057065
B57: OR - Pendleton | C57: summer | D57: 2 | E57: 8 | F57: 70.26711957
B58: OR - Pendleton | C58: summer | D58: 3 | E58: 9 | F58: 60.490625
B59: OR - Pendleton | C59: fall | D59: 1 | E59: 10 | F59: 47.82997283
B60: OR - Pendleton | C60: fall | D60: 2 | E60: 11 | F60: 43.13603261
B61: OR - Pendleton | C61: fall | D61: 3 | E61: 12 | F61: 40.39494565
A62: OR - Portland | B62: OR - Portland | C62: winter | D62: 1 | E62: 1 | F62: 47.5425
B63: OR - Portland | C63: winter | D63: 2 | E63: 2 | F63: 45.16625
B64: OR - Portland | C64: winter | D64: 3 | E64: 3 | F64: 40.5035
B65: OR - Portland | C65: spring | D65: 1 | E65: 4 | F65: 62.67021978
B66: OR - Portland | C66: spring | D66: 2 | E66: 5 | F66: 59.02991758
A67: =IF(B67=B66,"",B67) ->  | B67: OR - Portland | C67: spring | D67: 3 | E67: 6 | F67: 52.05195055
B68: OR - Portland | C68: summer | D68: 1 | E68: 7 | F68: 71.66970109
B69: OR - Portland | C69: summer | D69: 2 | E69: 8 | F69: 68.55173913
B70: OR - Portland | C70: summer | D70: 3 | E70: 9 | F70: 58.95328804
B71: OR - Portland | C71: fall | D71: 1 | E71: 10 | F71: 50.02054348
B72: OR - Portland | C72: fall | D72: 2 | E72: 11 | F72: 47.345
B73: OR - Portland | C73: fall | D73: 3 | E73: 12 | F73: 44.32119565
A74: OR - Roseburg | B74: OR - Roseburg | C74: winter | D74: 1 | E74: 1 | F74: 49.72925
B75: OR - Roseburg | C75: winter | D75: 2 | E75: 2 | F75: 47.8335
B76: OR - Roseburg | C76: winter | D76: 3 | E76: 3 | F76: 42.5065
B77: OR - Roseburg | C77: spring | D77: 1 | E77: 4 | F77: 63.80041209
B78: OR - Roseburg | C78: spring | D78: 2 | E78: 5 | F78: 59.86414835
B79: OR - Roseburg | C79: spring | D79: 3 | E79: 6 | F79: 50.09296703
B80: OR - Roseburg | C80: summer | D80: 1 | E80: 7 | F80: 72.78076087
B81: OR - Roseburg | C81: summer | D81: 2 | E81: 8 | F81: 69.09589674
B82: OR - Roseburg | C82: summer | D82: 3 | E82: 9 | F82: 57.69671196
B83: OR - Roseburg | C83: fall | D83: 1 | E83: 10 | F83: 51.89
B84: OR - Roseburg | C84: fall | D84: 2 | E84: 11 | F84: 48.60035326
B85: OR - Roseburg | C85: fall | D85: 3 | E85: 12 | F85: 44.72986413
A86: OR - Medford | B86: OR - Medford | C86: winter | D86: 1 | E86: 1 | F86: 46.7765
B87: OR - Medford | C87: winter | D87: 2 | E87: 2 | F87: 43.44275
B88: OR - Medford | C88: winter | D88: 3 | E88: 3 | F88: 36.18125
B89: OR - Medford | C89: spring | D89: 1 | E89: 4 | F89: 65.02357143
B90: OR - Medford | C90: spring | D90: 2 | E90: 5 | F90: 59.33502747
B91: OR - Medford | C91: spring | D91: 3 | E91: 6 | F91: 49.03744505
B92: OR - Medford | C92: summer | D92: 1 | E92: 7 | F92: 76.5886413
B93: OR - Medford | C93: summer | D93: 2 | E93: 8 | F93: 71.42220109
B94: OR - Medford | C94: summer | D94: 3 | E94: 9 | F94: 57.95619565
B95: OR - Medford | C95: fall | D95: 1 | E95: 10 | F95: 50.19907609
B96: OR - Medford | C96: fall | D96: 2 | E96: 11 | F96: 46.16326087
B97: OR - Medford | C97: fall | D97: 3 | E97: 12 | F97: 39.70209239
A98: OR - Klamath Falls | B98: OR - Klamath Falls | C98: winter | D98: 1 | E98: 1 | F98: 39.65575
B99: OR - Klamath Falls | C99: winter | D99: 2 | E99: 2 | F99: 34.181
B100: OR - Klamath Falls | C100: winter | D100: 3 | E100: 3 | F100: 29.36525
B101: OR - Klamath Falls | C101: spring | D101: 1 | E101: 4 | F101: 60.49464286
B102: OR - Klamath Falls | C102: spring | D102: 2 | E102: 5 | F102: 52.98458791
B103: OR - Klamath Falls | C103: spring | D103: 3 | E103: 6 | F103: 43.13848901
B104: OR - Klamath Falls | C104: summer | D104: 1 | E104: 7 | F104: 74.19777174
B105: OR - Klamath Falls | C105: summer | D105: 2 | E105: 8 | F105: 65.23029891
B106: OR - Klamath Falls | C106: summer | D106: 3 | E106: 9 | F106: 51.861875
B107: OR - Klamath Falls | C107: fall | D107: 1 | E107: 10 | F107: 43.46032609
B108: OR - Klamath Falls | C108: fall | D108: 2 | E108: 11 | F108: 36.25201087
B109: OR - Klamath Falls | C109: fall | D109: 3 | E109: 12 | F109: 31.05377717
A110: OR - Eugene | B110: OR - Eugene | C110: winter | D110: 1 | E110: 1 | F110: 46.50825
B111: OR - Eugene | C111: winter | D111: 2 | E111: 2 | F111: 43.04875
B112: OR - Eugene | C112: winter | D112: 3 | E112: 3 | F112: 39.03
B113: OR - Eugene | C113: spring | D113: 1 | E113: 4 | F113: 61.90324176
B114: OR - Eugene | C114: spring | D114: 2 | E114: 5 | F114: 56.17736264
B115: OR - Eugene | C115: spring | D115: 3 | E115: 6 | F115: 48.48112637
B116: OR - Eugene | C116: summer | D116: 1 | E116: 7 | F116: 73.65997283
B117: OR - Eugene | C117: summer | D117: 2 | E117: 8 | F117: 66.55584239
B118: OR - Eugene | C118: summer | D118: 3 | E118: 9 | F118: 55.24470109
B119: OR - Eugene | C119: fall | D119: 1 | E119: 10 | F119: 49.544375
B120: OR - Eugene | C120: fall | D120: 2 | E120: 11 | F120: 45.06980978
B121: OR - Eugene | C121: fall | D121: 3 | E121: 12 | F121: 41.01222826
A122: OR - Corvallis | B122: OR - Corvallis | C122: winter | D122: 1 | E122: 1 | F122: 48.7305
B123: OR - Corvallis | C123: winter | D123: 2 | E123: 2 | F123: 45.94225
B124: OR - Corvallis | C124: winter | D124: 3 | E124: 3 | F124: 42.4795
B125: OR - Corvallis | C125: spring | D125: 1 | E125: 4 | F125: 63.94876374
B126: OR - Corvallis | C126: spring | D126: 2 | E126: 5 | F126: 57.30978022
B127: OR - Corvallis | C127: spring | D127: 3 | E127: 6 | F127: 48.62527473
B128: OR - Corvallis | C128: summer | D128: 1 | E128: 7 | F128: 76.77695652
B129: OR - Corvallis | C129: summer | D129: 2 | E129: 8 | F129: 68.13035326
B130: OR - Corvallis | C130: summer | D130: 3 | E130: 9 | F130: 57.21296196
A131: =IF(B131=B130,"",B131) ->  | B131: OR - Corvallis | C131: fall | D131: 1 | E131: 10 | F131: 51.34706522
B132: OR - Corvallis | C132: fall | D132: 2 | E132: 11 | F132: 46.58758152
B133: OR - Corvallis | C133: fall | D133: 3 | E133: 12 | F133: 42.94111413
A134: OR - The Dalles | B134: OR - The Dalles | C134: winter | D134: 1 | E134: 1 | F134: 45.60425
B135: OR - The Dalles | C135: winter | D135: 2 | E135: 2 | F135: 42.475
B136: OR - The Dalles | C136: winter | D136: 3 | E136: 3 | F136: 37.11775
B137: OR - The Dalles | C137: spring | D137: 1 | E137: 4 | F137: 67.63950549
B138: OR - The Dalles | C138: spring | D138: 2 | E138: 5 | F138: 61.87282967
B139: OR - The Dalles | C139: spring | D139: 3 | E139: 6 | F139: 53.33989011
B140: OR - The Dalles | C140: summer | D140: 1 | E140: 7 | F140: 78.98097826
B141: OR - The Dalles | C141: summer | D141: 2 | E141: 8 | F141: 73.60714674
B142: OR - The Dalles | C142: summer | D142: 3 | E142: 9 | F142: 63.16959239
B143: OR - The Dalles | C143: fall | D143: 1 | E143: 10 | F143: 49.33038043
B144: OR - The Dalles | C144: fall | D144: 2 | E144: 11 | F144: 44.66383152
B145: OR - The Dalles | C145: fall | D145: 3 | E145: 12 | F145: 40.58595109
A146: ID - Salmon | B146: ID - Salmon | C146: winter | D146: 1 | E146: 1 | F146: 32.13225
B147: ID - Salmon | C147: winter | D147: 2 | E147: 2 | F147: 30.103
B148: ID - Salmon | C148: winter | D148: 3 | E148: 3 | F148: 23.518
B149: ID - Salmon | C149: spring | D149: 1 | E149: 4 | F149: 60.21747253
B150: ID - Salmon | C150: spring | D150: 2 | E150: 5 | F150: 57.26453297
B151: ID - Salmon | C151: spring | D151: 3 | E151: 6 | F151: 44.63164835
B152: ID - Salmon | C152: summer | D152: 1 | E152: 7 | F152: 73.10309783
B153: ID - Salmon | C153: summer | D153: 2 | E153: 8 | F153: 68.62192935
B154: ID - Salmon | C154: summer | D154: 3 | E154: 9 | F154: 51.3942663
B155: ID - Salmon | C155: fall | D155: 1 | E155: 10 | F155: 38.1488587
B156: ID - Salmon | C156: fall | D156: 2 | E156: 11 | F156: 34.47035326
B157: ID - Salmon | C157: fall | D157: 3 | E157: 12 | F157: 27.85584239
A158: ID - Pocatello | B158: ID - Pocatello | C158: winter | D158: 1 | E158: 1 | F158: 34.18925
B159: ID - Pocatello | C159: winter | D159: 2 | E159: 2 | F159: 30.9845
B160: ID - Pocatello | C160: winter | D160: 3 | E160: 3 | F160: 25.2785
B161: ID - Pocatello | C161: spring | D161: 1 | E161: 4 | F161: 63.21096154
B162: ID - Pocatello | C162: spring | D162: 2 | E162: 5 | F162: 57.71057692
B163: ID - Pocatello | C163: spring | D163: 3 | E163: 6 | F163: 46.10131868
B164: ID - Pocatello | C164: summer | D164: 1 | E164: 7 | F164: 76.58766304
B165: ID - Pocatello | C165: summer | D165: 2 | E165: 8 | F165: 69.2480163
B166: ID - Pocatello | C166: summer | D166: 3 | E166: 9 | F166: 54.37086957
B167: ID - Pocatello | C167: fall | D167: 1 | E167: 10 | F167: 40.68866848
B168: ID - Pocatello | C168: fall | D168: 2 | E168: 11 | F168: 35.90839674
B169: ID - Pocatello | C169: fall | D169: 3 | E169: 12 | F169: 30.06328804
A170: ID - Malad City | B170: ID - Malad City | C170: winter | D170: 1 | E170: 1 | F170: 38.05825
B171: ID - Malad City | C171: winter | D171: 2 | E171: 2 | F171: 35.236
B172: ID - Malad City | C172: winter | D172: 3 | E172: 3 | F172: 29.18225
B173: ID - Malad City | C173: spring | D173: 1 | E173: 4 | F173: 63.80684066
B174: ID - Malad City | C174: spring | D174: 2 | E174: 5 | F174: 57.47148352
B175: ID - Malad City | C175: spring | D175: 3 | E175: 6 | F175: 45.05865385
B176: ID - Malad City | C176: summer | D176: 1 | E176: 7 | F176: 78.79266304
B177: ID - Malad City | C177: summer | D177: 2 | E177: 8 | F177: 69.61315217
B178: ID - Malad City | C178: summer | D178: 3 | E178: 9 | F178: 53.83111413
B179: ID - Malad City | C179: fall | D179: 1 | E179: 10 | F179: 42.18516304
B180: ID - Malad City | C180: fall | D180: 2 | E180: 11 | F180: 37.04782609
B181: ID - Malad City | C181: fall | D181: 3 | E181: 12 | F181: 30.39418478
A182: ID - Lewiston | B182: ID - Lewiston | C182: winter | D182: 1 | E182: 1 | F182: 40.35075
B183: ID - Lewiston | C183: winter | D183: 2 | E183: 2 | F183: 37.89125
B184: ID - Lewiston | C184: winter | D184: 3 | E184: 3 | F184: 33.8165
B185: ID - Lewiston | C185: spring | D185: 1 | E185: 4 | F185: 64.92293956
B186: ID - Lewiston | C186: spring | D186: 2 | E186: 5 | F186: 59.84857143
B187: ID - Lewiston | C187: spring | D187: 3 | E187: 6 | F187: 50.99543956
B188: ID - Lewiston | C188: summer | D188: 1 | E188: 7 | F188: 79.08565217
B189: ID - Lewiston | C189: summer | D189: 2 | E189: 8 | F189: 74.2557337
B190: ID - Lewiston | C190: summer | D190: 3 | E190: 9 | F190: 62.42709239
B191: ID - Lewiston | C191: fall | D191: 1 | E191: 10 | F191: 44.65649457
B192: ID - Lewiston | C192: fall | D192: 2 | E192: 11 | F192: 41.39105978
B193: ID - Lewiston | C193: fall | D193: 3 | E193: 12 | F193: 38.20608696
A194: ID - Idaho Falls | B194: ID - Idaho Falls | C194: winter | D194: 1 | E194: 1 | F194: 27.94375
A195: =IF(B195=B194,"",B195) ->  | B195: ID - Idaho Falls | C195: winter | D195: 2 | E195: 2 | F195: 25.82225
B196: ID - Idaho Falls | C196: winter | D196: 3 | E196: 3 | F196: 20.75025
B197: ID - Idaho Falls | C197: spring | D197: 1 | E197: 4 | F197: 61.74821429
B198: ID - Idaho Falls | C198: spring | D198: 2 | E198: 5 | F198: 56.11332418
B199: ID - Idaho Falls | C199: spring | D199: 3 | E199: 6 | F199: 44.27881868
B200: ID - Idaho Falls | C200: summer | D200: 1 | E200: 7 | F200: 73.98915761
... 293 more rows

Sheet Correction Factors (hidden)
D1: Correction factors for compressed air refrigerated dryers
D3: CORRECTION FACTOR FOR DRYER INLET AIR TEMPERATURE | K3: CORRECTION FACTOR FOR INLET AIR PRESSURE | R3: CORRECTION FACTOR FOR AMBIENT AIR TEMPERATURE
D5: Inlet air | E5: Correction | K5: Inlet air | L5: Correction | R5: Ambient | S5: Correction
D6: temp | E6: factor | K6: pressure | L6: factor | R6: temp | S6: factor
D7: 80 | E7: =AVERAGE(F26,E37,E65) -> 1.593114754 | G7: =D7 -> 80 | H7: =G7^2 -> 6400 | I7: =G7^3 -> 512000 | K7: 50 | L7: =AVERAGE(M26,L65) -> 0.7875968992 | N7: =K7 -> 50 | O7: =N7^2 -> 2500 | P7: =N7^3 -> 125000 | R7: 80 | S7: =AVERAGE(T26,S37,T49) -> 1.206666667
B8: averaged | D8: 90 | E8: =AVERAGE(F27,E38,E66) -> 1.251940928 | G8: =D8 -> 90 | H8: =G8^2 -> 8100 | I8: =G8^3 -> 729000 | K8: 75 | L8: =AVERAGE(M27,M37,L66) -> 0.9063636364 | N8: =K8 -> 75 | O8: =N8^2 -> 5625 | P8: =N8^3 -> 421875 | R8: 90 | S8: =AVERAGE(T27,S38,T50) -> 1.101198502
D9: 100 | E9: =AVERAGE(F28,E39,E67) -> 1 | G9: =D9 -> 100 | H9: =G9^2 -> 10000 | I9: =G9^3 -> 1000000 | K9: 100 | L9: =AVERAGE(L28,N38,M67) -> 1 | N9: 100 | O9: 10000 | P9: 1000000 | R9: 100 | S9: =AVERAGE(T28,S39,T51) -> 1
D10: 110 | E10: =AVERAGE(F29,E40,E68) -> 0.8176693767 | G10: =D10 -> 110 | H10: =G10^2 -> 12100 | I10: =G10^3 -> 1331000 | K10: 125 | L10: =AVERAGE(M29,M39,L68) -> 1.087596899 | N10: 125 | O10: 15625 | P10: 1953125 | R10: 110 | S10: =AVERAGE(T29,S40,T52) -> 0.8873563218
D11: 120 | E11: =AVERAGE(F30,E41,E69) -> 0.6707505519 | G11: =D11 -> 120 | H11: =G11^2 -> 14400 | I11: =G11^3 -> 1728000 | K11: 150 | L11: =AVERAGE(M30,M40,L69) -> 1.158607595 | N11: 150 | O11: 22500 | P11: 3375000 | R11: 120 | S11: =AVERAGE(T30,S41,T53) -> 0.7696153846
K12: 225 | L12: =AVERAGE(M41,L70) -> 1.22 | N12: 225 | O12: 50625 | P12: 11390625
D13: SLOPE | E13: =SLOPE(E7:E11,D7:D11) -> -0.02278999956 | F13: inlet_temp_slope | K13: 250 | L13: =M30 -> 1.265822785 | N13: 250 | O13: 62500 | P13: 15625000 | R13: SLOPE | S13: =SLOPE(S7:S11,R7:R11) -> -0.01087944744 | T13: ambient_slope
D14: INTERCEPT: | E14: =INTERCEPT(E7:E11,D7:D11) -> 3.345695078 | F14: inlet_temp_intercept | R14: INTERCEPT: | S14: =INTERCEPT(S7:S11,R7:R11) -> 2.080912119 | T14: ambient_intercept
D15: a0 | E15: =INDEX(LINEST($E$7:$E$11,$G$7:$I$11),4) -> 10.8851357 | K15: a0 | L15: =INDEX(LINEST($L$7:$L$13,$N$7:$P$13),4) -> 0.4219336838
D16: a1 | E16: =INDEX(LINEST($E$7:$E$11,$G$7:$I$11),3) -> -0.2212635742 | K16: a1 | L16: =INDEX(LINEST($L$7:$L$13,$N$7:$P$13),3) -> 0.008761072188
D17: a2 | E17: =INDEX(LINEST($E$7:$E$11,$G$7:$I$11),2) -> 0.001672756267 | K17: a2 | L17: =INDEX(LINEST($L$7:$L$13,$N$7:$P$13),2) -> -3.342301858e-05
D18: a3 | E18: =INDEX(LINEST($E$7:$E$11,$G$7:$I$11),1) -> -4.485091589e-06 | K18: a3 | L18: =INDEX(LINEST($L$7:$L$13,$N$7:$P$13),1) -> 4.695783614e-08
D22: CORRECTION FACTOR FOR DRYER INLET AIR TEMPERATURE | K22: CORRECTION FACTOR FOR INLET AIR PRESSURE | R22: CORRECTION FACTOR FOR AMBIENT AIR TEMPERATURE
D24: Inlet air | E24: Correction | K24: Inlet air | L24: Correction | R24: Ambient | S24: Correction
D25: temp | E25: factor | F25: inverse | K25: pressure | L25: factor | M25: inverse | R25: temp | S25: factor | T25: inverse
B26: Zeks | D26: 80 | E26: 0.61 | F26: =1/E26 -> 1.639344262 | G26: =SLOPE(E26:E30,D26:D30) -> 0.0224 | H26: = slope | K26: 50 | L26: 1.29 | M26: =1/L26 -> 0.7751937984 | N26: =SLOPE(L26:L30,K26:K30) -> -0.00226 | O26: = slope | R26: 80 | S26: 0.8 | T26: =1/S26 -> 1.25 | U26: =SLOPE(S26:S30,R26:R30) -> 0.0127 | V26: = slope
B27: Cycling | D27: 90 | E27: 0.79 | F27: =1/E27 -> 1.265822785 | G27: =INTERCEPT(E26:E30,D26:D30) -> -1.212 | H27: = intercept | K27: 75 | L27: 1.1 | M27: =1/L27 -> 0.9090909091 | N27: =INTERCEPT(L26:L30,K26:K30) -> 1.2905 | O27: = intercept | R27: 90 | S27: 0.89 | T27: =1/S27 -> 1.123595506 | U27: =INTERCEPT(S26:S30,R26:R30) -> -0.24 | V27: = intercept
B28: and non-cycling | D28: 100 | E28: 1 | F28: =1/E28 -> 1 | K28: 100 | L28: 1 | M28: =1/L28 -> 1 | R28: 100 | S28: 1 | T28: =1/S28 -> 1
D29: 110 | E29: 1.23 | F29: =1/E29 -> 0.8130081301 | K29: 150 | L29: 0.86 | M29: =1/L29 -> 1.162790698 | R29: 110 | S29: 1.16 | T29: =1/S29 -> 0.8620689655
D30: 120 | E30: 1.51 | F30: =1/E30 -> 0.6622516556 | K30: 250 | L30: 0.79 | M30: =1/L30 -> 1.265822785 | R30: 120 | S30: 1.3 | T30: =1/S30 -> 0.7692307692
D33: CORRECTION FACTOR FOR DRYER INLET AIR TEMPERATURE | K33: CORRECTION FACTOR FOR INLET AIR PRESSURE | R33: CORRECTION FACTOR FOR AMBIENT AIR TEMPERATURE
D35: Inlet air | E35: Correction | F35: Inverse | L35: Inlet air | M35: Correction | N35: Inverse | R35: Ambient | S35: Correction | T35: Inverse
D36: temp | E36: factor | F36: (multiply by) | L36: pressure | M36: factor | N36: (multiply by) | R36: temp | S36: factor | T36: (multiply by)
B37: Ingersoll: | D37: 80 | E37: 1.64 | F37: =1/E37 -> 0.6097560976 | L37: 75 | M37: 0.91 | N37: =1/M37 -> 1.098901099 | R37: 80 | S37: 1.25 | T37: =1/S37 -> 0.8
B38: Cycling | D38: 90 | E38: 1.27 | F38: =1/E38 -> 0.7874015748 | L38: 100 | M38: 1 | N38: =1/M38 -> 1 | R38: 90 | S38: 1.12 | T38: =1/S38 -> 0.8928571429
D39: 100 | E39: 1 | F39: =1/E39 -> 1 | L39: 125 | M39: 1.08 | N39: =1/M39 -> 0.9259259259 | R39: 100 | S39: 1 | T39: =1/S39 -> 1
D40: 110 | E40: 0.81 | F40: =1/E40 -> 1.234567901 | L40: 150 | M40: 1.16 | N40: =1/M40 -> 0.8620689655 | R40: 110 | S40: 0.86 | T40: =1/S40 -> 1.162790698
D41: 120 | E41: 0.66 | F41: =1/E41 -> 1.515151515 | L41: 225 | M41: 1.22 | N41: =1/M41 -> 0.8196721311 | R41: 120 | S41: 0.77 | T41: =1/S41 -> 1.298701299
M46: inversed for multiplication
F47: Inlet temp | G47: (°F) | N47: Inlet temp | O47: (°F) | S47: Ambient | T47: Correction | U47: Inverse
D48: Inlet pressure | L48: Inlet pressure | S48: temp | T48: factor | U48: (multiply by)
D49: (psig) | E49: 80 | F49: 90 | G49: 100 | H49: 110 | I49: 120 | L49: (psig) | M49: 80 | N49: 90 | O49: 100 | P49: 110 | Q49: 120 | S49: 80 | T49: 1.12 | U49: =1/T49 -> 0.8928571429
D50: 50 | E50: 1.35 | F50: 1.05 | G50: 0.84 | H50: 0.69 | I50: 0.56 | L50: 50 | M50: =1/E50 -> 0.7407407407 | N50: 0.9523809524 | O50: 1.19047619 | P50: 1.449275362 | Q50: 1.785714286 | S50: 90 | T50: 1.06 | U50: =1/T50 -> 0.9433962264
D51: 80 | E51: 1.5 | F51: 1.17 | G51: 0.95 | H51: 0.79 | I51: 0.66 | L51: 80 | M51: 0.6666666667 | N51: 0.8547008547 | O51: 1.052631579 | P51: 1.265822785 | Q51: 1.515151515 | S51: 100 | T51: 1 | U51: =1/T51 -> 1
B52: Hankinson | D52: 100 | E52: 1.55 | F52: 1.23 | G52: 1 | H52: 0.82 | I52: 0.7 | L52: 100 | M52: 0.6451612903 | N52: 0.8130081301 | O52: 1 | P52: 1.219512195 | Q52: 1.428571429 | S52: 110 | T52: 0.94 | U52: =1/T52 -> 1.063829787
B53: Cycling | D53: 125 | E53: 1.63 | F53: 1.31 | G53: 1.07 | H53: 0.91 | I53: 0.74 | L53: 125 | M53: 0.6134969325 | N53: 0.7633587786 | O53: 0.9345794393 | P53: 1.098901099 | Q53: 1.351351351
D54: 150 | E54: 1.7 | F54: 1.37 | G54: 1.13 | H54: 0.95 | I54: 0.8 | L54: 150 | M54: 0.5882352941 | N54: 0.7299270073 | O54: 0.8849557522 | P54: 1.052631579 | Q54: 1.25
D55: 175 | F55: 1.42 | G55: 1.18 | H55: 0.99 | I55: 0.84 | L55: 175 | N55: 0.7042253521 | O55: 0.8474576271 | P55: 1.01010101 | Q55: 1.19047619
D56: 200 | F56: 1.47 | G56: 1.22 | H56: 1.03 | I56: 0.89 | L56: 200 | N56: 0.6802721088 | O56: 0.8196721311 | P56: 0.9708737864 | Q56: 1.123595506
D57: 250 | F57: 1.49 | G57: 1.24 | H57: 1.05 | I57: 0.91 | L57: 250 | N57: 0.6711409396 | O57: 0.8064516129 | P57: 0.9523809524 | Q57: 1.098901099
D61: CORRECTION FACTOR FOR DRYER INLET AIR TEMPERATURE | K61: CORRECTION FACTOR FOR INLET AIR PRESSURE | R61: CORRECTION FACTOR FOR AMBIENT AIR TEMPERATURE
D63: Inlet air | E63: Correction | F63: Inverse | K63: Inlet air | L63: Correction | M63: Inverse | R63: Ambient | S63: Correction | T63: Inverse
D64: temp | E64: factor | F64: (multiply by) | K64: pressure | L64: factor | M64: (multiply by) | R64: temp | S64: factor | T64: (multiply by)
B65: Airtek | D65: 80 | E65: 1.5 | F65: =1/E65 -> 0.6666666667 | K65: 50 | L65: 0.8 | M65: =1/L65 -> 1.25
B66: E-series non-cycling | D66: 90 | E66: 1.22 | F66: =1/E66 -> 0.8196721311 | K66: 75 | L66: 0.9 | M66: =1/L66 -> 1.111111111 | R66: 90 | S66: 1.05 | T66: =1/S66 -> 0.9523809524
D67: 100 | E67: 1 | F67: =1/E67 -> 1 | K67: 100 | L67: 1 | M67: =1/L67 -> 1 | R67: 100 | S67: 1 | T67: =1/S67 -> 1
D68: 110 | E68: 0.83 | F68: =1/E68 -> 1.204819277 | K68: 125 | L68: 1.02 | M68: =1/L68 -> 0.9803921569 | R68: 110 | S68: 0.9 | T68: =1/S68 -> 1.111111111
D69: 120 | E69: 0.69 | F69: =1/E69 -> 1.449275362 | K69: 150 | L69: 1.05 | M69: =1/L69 -> 0.9523809524
K73: CORRECTION FACTOR FOR INLET AIR PRESSURE
B75: Airtek | K75: Inlet air | L75: Correction | M75: Inverse | S75: same
B76: Cycling | E76: same | K76: pressure | L76: factor | M76: (multiply by)
K77: 50 | L77: 0.8 | M77: =1/L77 -> 1.25
K78: 75 | L78: 0.9 | M78: =1/L78 -> 1.111111111
K79: 100 | L79: 1 | M79: =1/L79 -> 1
K80: 125 | L80: 1.12 | M80: =1/L80 -> 0.8928571429
K81: 150 | L81: 1.15 | M81: =1/L81 -> 0.8695652174
B86: Elevation, feet | F86: 4300
B87: Atmospheric Pressure, psia | F87: =local_Patm(F86) -> 12.55019655
B88: CAGI Std Atmospheric Pressure, psia | F88: 14.5
B89: scfm per acfm | F89: =F87/F88 -> 0.8655307962

Sheet Operating Power (hidden)
B1: Operating Power: Cycling and Non-Cycling
B4: Cycling
B5: Air cooled | Q5: Water Cooled
B6: Nominal | C6: operating | Q6: Nominal | R6: operating | AF6: Ingersoll-Rand data
B7: capacity, | C7: kW | Q7: capacity, | R7: kW | Y7: Non-cycling Dryer Part Load Performance | AF7: model | AG7: full flow | AH7: 10% flow | AI7: full power | AJ7: 10% power | AK7: %power at 10% flow
B8: scfm @ 38F | C8: air cool | F8: sorted | G8: averaged | Q8: scfm @ 38F | R8: water cool | U8: sorted | V8: averaged | AF8: D340IN | AG8: 200 | AH8: 20 | AI8: 1.7 | AJ8: 1.6 | AK8: =AJ8/AI8 -> 0.9411764706
B9: 75 | C9: 0.78 | D9: Zek | F9: 20 | G9: 0.26 | Q9: 0 | R9: 0 | S9: Hankinson | U9: 100 | V9: 1 | Y9: % load | Z9: % rated power | AF9: D420IN | AG9: 250 | AH9: 25 | AI9: 1.8 | AJ9: 1.7 | AK9: =AJ9/AI9 -> 0.9444444444
B10: 80 | C10: 0.71 | D10: Sullivan | F10: 75 | G10: 0.78 | Q10: 200 | R10: 1.06 | S10: Zek | U10: 200 | V10: 1.06 | Y10: 1 | Z10: 1 | AF10: D510IN | AG10: 300 | AH10: 30 | AI10: 2.2 | AJ10: 2.1 | AK10: 0.9545454545
B11: 100 | C11: 0.97 | D11: Airtek | F11: 80 | G11: 0.71 | Q11: 200 | R11: 1.06 | S11: Ingersoll-Rand | U11: 250 | V11: 1.39 | Y11: 0 | Z11: =AVERAGE(AK15,AK65) -> 0.945156157 | AF11: D680IN | AG11: 400 | AH11: 40 | AI11: 3.5 | AJ11: 3.3 | AK11: 0.9428571429
B12: 100 | C12: 0.93 | D12: Sullivan | F12: 100 | G12: 0.9533333333 | Q12: 250 | R12: 1.39 | S12: Zek | U12: 300 | V12: 1.65 | AF12: D850IN | AG12: 500 | AH12: 50 | AI12: 3.6 | AJ12: 3.4 | AK12: 0.9444444444
B13: 100 | C13: 0.96 | D13: Zek | F13: 125 | G13: 1.17 | Q13: 300 | R13: 1.65 | S13: Zek | U13: 400 | V13: 2.19 | Y13: =SLOPE(Z10:Z11,Y10:Y11) -> 0.05484384299 | Z13: = slope | AF13: D1020IN | AG13: 600 | AH13: 60 | AI13: 4.5 | AJ13: 4.2 | AK13: 0.9333333333
B14: 125 | C14: 1.13 | D14: Airtek | F14: 150 | G14: 1.29 | Q14: 300 | R14: 1.65 | S14: Ingersoll-Rand | U14: 500 | V14: 2.8 | Y14: =INTERCEPT(Z10:Z11,Y10:Y11) -> 0.945156157 | Z14: = intercept | AF14: D1700 | AG14: 981 | AH14: 131 | AI14: 6.4 | AJ14: 5.1 | AK14: 0.796875 | AL14: not actually at 10%
B15: 125 | C15: 1.03 | D15: Sullivan | F15: 165 | G15: 1.27 | Q15: 400 | R15: 2.19 | S15: Zek | U15: 600 | V15: 3.14 | AF15: cycling | AK15: =AVERAGE(AK8:AK13) -> 0.9434668817
B16: 125 | C16: 1.35 | D16: Zek | F16: 180 | G16: 1.28 | Q16: 400 | R16: 2.19 | S16: Ingersoll-Rand | U16: 700 | V16: 3.58 | Y16: Assumes non-cycling dryer uses 90% of rated power at 0% load, | AF16: NVC200 | AG16: 200 | AH16: 20 | AI16: 1.7 | AJ16: 0.31 | AK16: 0.1823529412
B17: 150 | C17: 1.29 | D17: Zek | F17: 200 | G17: 1.66 | Q17: 500 | R17: 2.8 | S17: Zek | U17: 800 | V17: 4.16 | Y17: 100% rated power at 100% rated load, with straight line between. | AF17: NVC300 | AG17: 300 | AH17: 30 | AI17: 2.5 | AJ17: 0.39 | AK17: 0.156
B18: 165 | C18: 1.27 | D18: Airtek | F18: 220 | G18: 1.9 | Q18: 500 | R18: 2.8 | S18: Ingersoll-Rand | U18: 1000 | V18: 5.69 | AF18: NVC400 | AG18: 400 | AH18: 40 | AI18: 3.2 | AJ18: 0.46 | AK18: 0.14375
B19: 180 | C19: 1.28 | D19: Sullivan | F19: 250 | G19: 1.912333333 | Q19: 600 | R19: 3.14 | S19: Zek | U19: 1200 | V19: 6.74 | AF19: NVC500 | AG19: 500 | AH19: 50 | AI19: 4.5 | AJ19: 0.59 | AK19: 0.1311111111
B20: 200 | C20: 1.66 | D20: Ingersoll-Rand | F20: 300 | G20: 2.54 | Q20: 600 | R20: 3.14 | S20: Ingersoll-Rand | U20: 1600 | V20: 7.87 | AF20: NVC600 | AG20: 600 | AH20: 60 | AI20: 4.8 | AJ20: 0.62 | AK20: 0.1291666667
B21: 200 | C21: 1.66 | D21: Zek | F21: 325 | G21: 2.313 | Q21: 700 | R21: 3.58 | S21: Zek | U21: 2000 | V21: 10.045 | Y21: Cycling Dryer Part Load Performance | AF21: NVC700 | AG21: 700 | AH21: 70 | AI21: 5.8 | AJ21: 0.75 | AK21: 0.1293103448
B22: 220 | C22: 1.9 | D22: Airtek | F22: 400 | G22: 3.026666667 | Q22: 700 | R22: 3.58 | S22: Ingersoll-Rand | U22: 2400 | V22: 11.295 | Y22: under 300 scfm | AB22: over 300 scfm | AF22: NVC800 | AG22: 800 | AH22: 80 | AI22: 6.5 | AJ22: 0.82 | AK22: 0.1261538462
B23: 250 | C23: 2 | D23: Airtek | F23: 500 | G23: 4.39 | Q23: 800 | R23: 4.16 | S23: Zek | U23: 4000 | V23: 13.53 | Y23: % load | Z23: % rated power | AB23: %load | AC23: %rated power | AK23: =AVERAGE(AK16:AK22) -> 0.1425492728
B24: 250 | C24: 1.727 | D24: Sullivan | F24: 570 | G24: 3.78 | Q24: 800 | R24: 4.16 | S24: Ingersoll-Rand | U24: 5000 | V24: 14.2 | Y24: 1 | Z24: 1 | AB24: 1 | AC24: 1
B25: 250 | C25: 2.01 | D25: Zek | F25: 600 | G25: 4.82 | Q25: 1000 | R25: 6.9 | S25: Zek | U25: 6000 | V25: 21.045 | Y25: 0.1 | Z25: 0.19 | AB25: 0.1 | AC25: 0.17
B26: 300 | C26: 2.54 | D26: Ingersoll-Rand | F26: 650 | G26: 4.1 | Q26: 1000 | R26: 4.48 | S26: Ingersoll-Rand | U26: 8000 | V26: 27.46 | Y26: 0 | Z26: =Y28 -> 0.1 | AB26: 0 | AC26: =AB28 -> 0.07777777778
B27: 300 | C27: 2.54 | D27: Zek | F27: 700 | G27: 5.79 | Q27: 1200 | R27: 8 | S27: Zek | U27: 10000 | V27: 33.5 | Y27: =SLOPE(Z24:Z25,Y24:Y25) -> 0.9 | Z27: = slope | AB27: =SLOPE(AC24:AC25,AB24:AB25) -> 0.9222222222 | AC27: = slope | AF27: Airtek Data
B28: 325 | C28: 2.313 | D28: Sullivan | F28: 800 | G28: 5.68125 | Q28: 1200 | R28: 5.48 | S28: Ingersoll-Rand | U28: 12000 | V28: 41.5 | Y28: =INTERCEPT(Z24:Z25,Y24:Y25) -> 0.1 | Z28: = intercept | AB28: =INTERCEPT(AC24:AC25,AB24:AB25) -> 0.07777777778 | AC28: = intercept | AF28: model | AG28: full flow | AH28: 10% flow | AI28: full power | AJ28: 10% power | AK28: %power at 10% flow
B29: 400 | C29: 2.6 | D29: Airtek | F29: 1000 | G29: 7.165 | Q29: 1600 | R29: 8.4 | S29: Zek | U29: 15000 | V29: 48.8 | AF29: SCP220 | AG29: 210 | AH29: 21 | AI29: 1.8 | AJ29: 0.4 | AK29: =AJ29/AI29 -> 0.2222222222
B30: 400 | C30: 3.24 | D30: Ingersoll-Rand | F30: 1200 | G30: 8.636666667 | Q30: 1600 | R30: 7.34 | S30: Ingersoll-Rand | Y30: Assumes cycling dryer uses 20% of rated power at 0% load, | AF30: SCP250 | AG30: 250 | AH30: 25 | AI30: 2 | AJ30: 0.45 | AK30: 0.225
B31: 400 | C31: 3.24 | D31: Zek | F31: 1350 | G31: 9.6 | Q31: 2000 | R31: 11 | S31: Zek | Y31: 100% rated power at 100% rated load, with straight line between. | AF31: SCP330 | AG31: 310 | AH31: 31.5 | AI31: 2.3 | AJ31: 0.5 | AK31: 0.2173913043
B32: 500 | C32: 4 | D32: Airtek | F32: 1600 | G32: 12.29 | Q32: 2000 | R32: 9.09 | S32: Ingersoll-Rand | AF32: SCP400 | AG32: 400 | AH32: 40 | AI32: 2.5 | AJ32: 0.55 | AK32: 0.22
B33: 500 | C33: 4.65 | D33: Ingersoll-Rand | F33: 1800 | G33: 12.18 | Q33: 2400 | R33: 13 | S33: Zek | AF33: SCP500 | AG33: 500 | AH33: 50 | AI33: 4 | AJ33: 1.2 | AK33: 0.3
B34: 500 | C34: 4.52 | D34: Zek | F34: 2000 | G34: 12.96 | Q34: 2400 | R34: 9.59 | S34: Ingersoll-Rand | Z34: choice: | AF34: SCP800 | AG34: 820 | AH34: 82 | AI34: 5.1 | AJ34: 1.53 | AK34: 0.3
B35: 570 | C35: 3.78 | D35: Sullivan | F35: 2400 | G35: 15.045 | Q35: 4000 | R35: 15.26 | S35: Ingersoll-Rand | Z35: % load | AA35: % rated power | AK35: =AVERAGE(AK29:AK34) -> 0.2474355878
B36: 600 | C36: 4.82 | D36: Ingersoll-Rand | F36: 2500 | G36: 14.79 | Q36: 4000 | R36: 11.8 | S36: Hankinson | Z36: =IF(BaselineRating<=300,'Operating Power'!Y24,'Operating Power'!AB24) -> 1 | AA36: =IF(BaselineRating<=300,'Operating Power'!Z24,'Operating Power'!AC24) -> 1
B37: 600 | C37: 4.82 | D37: Zek | F37: 3000 | G37: 15.5 | Q37: 5000 | R37: 14.2 | S37: Hankinson | Z37: =IF(BaselineRating<=300,'Operating Power'!Y25,'Operating Power'!AB25) -> 0.1 | AA37: =IF(BaselineRating<=300,'Operating Power'!Z25,'Operating Power'!AC25) -> 0.19 | AJ37: average for both: | AK37: =AVERAGE(AK16:AK22,AK29:AK34) -> 0.1909583413
B38: 650 | C38: 4.1 | D38: Airtek | F38: 3250 | G38: 18.03 | Q38: 6000 | R38: 22.89 | S38: Ingersoll-Rand | Z38: =IF(BaselineRating<=300,'Operating Power'!Y26,'Operating Power'!AB26) -> 0 | AA38: =IF(BaselineRating<=300,'Operating Power'!Z26,'Operating Power'!AC26) -> 0.1
B39: 700 | C39: 5.79 | D39: Ingersoll-Rand | F39: 4000 | G39: 21.77 | Q39: 6000 | R39: 19.2 | S39: Hankinson
B40: 700 | C40: 5.79 | D40: Zek | F40: 4800 | G40: 28.72 | Q40: 8000 | R40: 30.52 | S40: Ingersoll-Rand | AF40: Zeks data
B41: 800 | C41: 5.1 | D41: Airtek | F41: 6000 | G41: 32.65 | Q41: 8000 | R41: 24.4 | S41: Hankinson | AF41: model | AG41: full flow | AH41: 10% flow | AI41: full power | AJ41: 10% power | AK41: %power at 10% flow
B42: 800 | C42: 6.5 | D42: Ingersoll-Rand | F42: 8000 | G42: 43.54 | Q42: 10000 | R42: 33.5 | S42: Hankinson | AF42: 200HSGA | AG42: 200 | AH42: 20 | AI42: 1.7 | AJ42: 0.31 | AK42: =AJ42/AI42 -> 0.1823529412
B43: 800 | C43: 4.625 | D43: Sullivan | Q43: 12000 | R43: 41.5 | S43: Hankinson | AF43: 400 HSGA | AG43: 400 | AH43: 40 | AI43: 3.2 | AJ43: 0.46 | AK43: 0.14375
B44: 800 | C44: 6.5 | D44: Zek | Q44: 15000 | R44: 48.8 | S44: Hankinson | AF44: 600 HSFA | AG44: 600 | AH44: 60 | AI44: 4.8 | AJ44: 0.62 | AK44: 0.1291666667
B45: 1000 | C45: 6.36 | D45: Airtek | Q45: SLOPE | R45: =SLOPE(R9:R43,Q9:Q43) -> 0.003259426433 | S45: cycling_water_slope | AF45: 800 HSFA | AG45: 800 | AH45: 80 | AI45: 6.5 | AJ45: 0.82 | AK45: 0.1261538462
B46: 1000 | C46: 7.03 | D46: Ingersoll-Rand | Q46: INTERCEPT: | R46: =INTERCEPT(R9:R43,Q9:Q43) -> 1.504877132 | S46: cycling_water_intercept | AF46: 1000HSFA | AG46: 1014 | AH46: 160 | AI46: 8.9 | AJ46: 1.6 | AK46: 0.1797752809
B47: 1000 | C47: 6.37 | D47: Sullivan | AF47: 200HSGW | AG47: 200 | AH47: 20 | AI47: 1.1 | AJ47: 0.21 | AK47: 0.1909090909
B48: 1000 | C48: 8.9 | D48: Zek | Q48: Upgrade size: | R48: =UpgradeRating -> 100 | AF48: 400HSGW | AG48: 400 | AH48: 40 | AI48: 2.2 | AJ48: 0.33 | AK48: 0.15
B49: 1200 | C49: 6.69 | D49: Airtek | Q49: base size: | R49: =BaselineRating -> 100 | AF49: 600HSFW | AG49: 600 | AH49: 60 | AI49: 3.2 | AJ49: 0.43 | AK49: 0.134375
B50: 1200 | C50: 8.72 | D50: Ingersoll-Rand | Q50: Upgrade kW: | AF50: 800HSFW | AG50: 800 | AH50: 80 | AI50: 4.2 | AJ50: 0.53 | AK50: 0.1261904762
B51: 1200 | C51: 10.5 | D51: Zek | Q51: air-cooled: | R51: =VLOOKUP(R48,F9:G42,2) -> 0.9533333333 | S51: CyclingAirkW
B52: 1350 | C52: 9.6 | D52: Sullivan | Q52: water-cooled: | R52: =VLOOKUP(R48,U9:V29,2) -> 1 | S52: CyclingWaterkW
B53: 1600 | C53: 11.48 | D53: Ingersoll-Rand | AF53: under 300: | AG53: =AVERAGE(AK16:AK17,AK29:AK30,AK42) -> 0.1935856209
B54: 1600 | C54: 13.1 | D54: Zek | Q54: Baseline kW: | AF54: over 300: | AG54: =AVERAGE(AK18:AK22,AK31:AK34,AI43:AI50) -> 2.105699016
B55: 1800 | C55: 12.18 | D55: Sullivan | Q55: air-cooled: | R55: =VLOOKUP(R49,E77:F99,2) -> 1.02 | S55: NcAirkW
B56: 2000 | C56: 11.7 | D56: Airtek | Q56: water-cooled: | R56: =VLOOKUP(R49,B124:C144,2) -> 1 | S56: NcWaterkW
B57: 2000 | C57: 13.18 | D57: Ingersoll-Rand | AF57: zeks non-cycling
B58: 2000 | C58: 14 | D58: Zek | AF58: model | AG58: full flow | AH58: 10% flow | AI58: full power | AJ58: 10% power | AK58: %power at 10% flow
B59: 2400 | C59: 14.29 | D59: Ingersoll-Rand | AF59: 200NCGA | AG59: 200 | AH59: 20 | AI59: 1.7 | AJ59: 1.6 | AK59: =AJ59/AI59 -> 0.9411764706
B60: 2400 | C60: 15.8 | D60: Zek | AF60: 400NCGA | AG60: 400 | AH60: 40 | AI60: 3.5 | AJ60: 3.3 | AK60: 0.9428571429
B61: 2500 | C61: 14.79 | D61: Airtek | AF61: 800NCEA | AG61: 800 | AH61: 80 | AI61: 5.6 | AJ61: 5.3 | AK61: 0.9464285714
B62: 3000 | C62: 15.5 | D62: Airtek | AF62: 200NCGW | AG62: 200 | AH62: 20 | AI62: 1.4 | AJ62: 1.3 | AK62: 0.9285714286
B63: 3250 | C63: 18.03 | D63: Ingersoll-Rand | AF63: 400NCGW | AG63: 400 | AH63: 40 | AI63: 2.9 | AJ63: 2.8 | AK63: 0.9655172414
B64: 4000 | C64: 21.77 | D64: Ingersoll-Rand | AF64: 800NCEW | AG64: 800 | AH64: 80 | AI64: 4.6 | AJ64: 4.4 | AK64: 0.9565217391
B65: 4800 | C65: 28.72 | D65: Ingersoll-Rand | AJ65: avg: | AK65: =AVERAGE(AK59:AK64) -> 0.9468454323
B66: 6000 | C66: 32.65 | D66: Ingersoll-Rand
B67: 8000 | C67: 43.54 | D67: Ingersoll-Rand
B69: SLOPE | C69: =SLOPE(C9:C67,B9:B67) -> 0.005456450053 | D69: cycling_air_slope
B70: INTERCEPT: | C70: =INTERCEPT(C9:C67,B9:B67) -> 1.170132514 | D70: cycling_air_intercept
B72: Non-cycling
A74: Air cooled | B74: Nominal | C74: operating
B75: capacity, | C75: kW
B76: scfm @ 38F | C76: air cool | E76: sorted | F76: averaged
B77: 20 | C77: 0.255 | D77: Sullivan | E77: 20 | F77: 0.255
B78: 25 | C78: 0.36 | D78: Sullivan | E78: 25 | F78: 0.36
B79: 40 | C79: 0.435 | D79: Sullivan | E79: 40 | F79: 0.435
B80: 50 | C80: 0.56 | D80: Sullivan | E80: 50 | F80: 0.56
B81: 75 | C81: 0.67 | D81: Zek | E81: 75 | F81: 0.715
B82: 75 | C82: 0.76 | D82: Sullivan | E82: 100 | F82: 1.02
B83: 100 | C83: 1.03 | D83: Zek | E83: 125 | F83: 1.185
B84: 100 | C84: 1.01 | D84: Sullivan | E84: 150 | F84: 1.185
B85: 125 | C85: 1.27 | D85: Zek | E85: 200 | F85: 1.62
B86: 125 | C86: 1.1 | D86: Sullivan | E86: 250 | F86: 1.816666667
B87: 150 | C87: 1.27 | D87: Zek | E87: 300 | F87: 2.086666667
B88: 150 | C88: 1.1 | D88: Sullivan | E88: 400 | F88: 2.812333333
B89: 200 | C89: 1.7 | D89: Zek | E89: 500 | F89: 3.872666667
B90: 200 | C90: 1.8 | D90: Zek | E90: 600 | F90: 4.5
B91: 200 | C91: 1.36 | D91: Sullivan | E91: 625 | F91: 4.2
B92: 250 | C92: 1.6 | D92: Zek | E92: 650 | F92: 4.028
B93: 250 | C93: 2 | D93: Airtek | E93: 700 | F93: 5.38
B94: 250 | C94: 1.85 | D94: Sullivan | E94: 800 | F94: 5.295
B95: 300 | C95: 2.11 | D95: Zek | E95: 1000 | F95: 6.5
B96: 300 | C96: 2.3 | D96: Airtek | E96: 1200 | F96: 9.5
B97: 300 | C97: 1.85 | D97: Sullivan | E97: 1600 | F97: 11.3
B98: 400 | C98: 3.48 | D98: Zek | E98: 2000 | F98: 13.8
B99: 400 | C99: 2.5 | D99: Airtek | E99: 2400 | F99: 16.2
B100: 400 | C100: 2.457 | D100: Sullivan
B101: 500 | C101: 3.59 | D101: Zek
B102: 500 | C102: 4 | D102: Airtek
B103: 500 | C103: 4.028 | D103: Sullivan
B104: 600 | C104: 4.5 | D104: Zek
B105: 625 | C105: 4.2 | D105: Airtek
B106: 650 | C106: 4.028 | D106: Sullivan
B107: 700 | C107: 5.38 | D107: Zek
B108: 800 | C108: 5.59 | D108: Zek
B109: 800 | C109: 5 | D109: Sullivan
B110: 1000 | C110: 6.5 | D110: Zek
B111: 1200 | C111: 9.5 | D111: Zek
B112: 1600 | C112: 11.3 | D112: Zek
B113: 2000 | C113: 13.8 | D113: Zek
B114: 2400 | C114: 16.2 | D114: Zek
B118: SLOPE | C118: =SLOPE(F77:F99,E77:E99) -> 0.006805510936 | D118: nc_air_slope
B119: INTERCEPT: | C119: =INTERCEPT(F77:F99,E77:E99) -> 0.2018359696 | D119: nc_air_intercept
B121: Nominal | C121: operating
A122: Water Cooled | B122: capacity, | C122: kW
B123: scfm @ 38F | C123: water cool
B124: 100 | C124: 1
B125: 200 | C125: 1.34 | D125: Zek
B126: 250 | C126: 1.25
B127: 300 | C127: 1.67
B128: 400 | C128: 2.88
B129: 500 | C129: 2.88
B130: 600 | C130: 3.71
B131: 700 | C131: 4.24
B132: 800 | C132: 4.54
B133: 1000 | C133: 6.1
B134: 1200 | C134: 6.1
B135: 1600 | C135: 7.7
B136: 2000 | C136: 9
B137: 2400 | C137: 11.7
B138: 4000 | C138: 13.9
B139: 5000 | C139: 16.4
B140: 6250 | C140: 22.5
B141: 8250 | C141: 28.9
B142: 10000 | C142: 39.6
B143: 12000 | C143: 49.6 | D143: Hankinson
B144: 15000 | C144: 57.6
B145: SLOPE | C145: =SLOPE(C125:C144,B125:B144) -> 0.003767723105 | D145: nc_water_slope
B146: INTERCEPT: | C146: =INTERCEPT(C125:C144,B125:B144) -> 0.9319230514 | D146: nc_water_intercept

Sheet Instructions
C5: Instructions for Using the BPA Small Compressed Air Calculator
C6: Intended Use
C7: The BPA Small Compressed Air Calculator provides a means of quickly estimating air compressor energy use and the savings associated with changing to a different compressor or compressor control method. The output may be used to apply for incentive funding from utility efficiency programs for projects involving compressors 150 hp and below. (Larger projects usually require a custom study.) Call the energy efficiency department at your local electric utility for information on incentives and details on how to apply.
C8: General Instructions
C9: Input fields are located on three worksheets in this Excel file. Information about the customer, also called the program "Participant", is entered in the first tab; "Customer Information." Vendor contact information and utility incentive program details are also entered here. Technical information about the project is requested on the second tab; "Savings Calculations." The third tab, "Explanation of Inputs," asks for explanation of how some of the entries in "Savings Calculations" were derived. A summary of results appears at the bottom of the "Savings Calculations" tab.
C10: Baseline Determination Considerations
C11: Energy savings from a new compressor installation are calculated relative to "baseline" energy use. Depending on circumstances, the appropriate baseline may be the existing compressor or a new, basic compressor without the energy-saving capabilities of a higher-end model. These baseline options are described below.
C12: a) The "Retrofit" scenario: When the proposed upgrade compressor replaces a machine that is currently operating and isn't about to be replaced for end-of-life reasons or to add more capacity, the "Baseline Compressor" will be the machine that is currently in place. The "Proposed Upgrade" will be the new, more efficient compressor. Eligible project cost is the total installed cost of the new compressor.
C13: b) The "New Construction" scenario: When the proposed compressor is a new machine in a new facility, or when it is an addition of new capacity, or when the existing compressor is on its last legs and will need to be replaced shortly, the "Baseline Compressor" will be a new compressor at the low end of the cost scale that typically would be installed in similar circumstances. The "Proposed Upgrade" will be a new, more efficient - and more costly - alternative. Eligible project cost is the difference between the cost of the more efficient alternative and the cost of the basic, less efficient installation. Typically the baseline control type for the new construction scenario should be load/unload.
C14: System Pressure
C15: "Current average operating pressure" is the average discharge pressure the compressor sees while running loaded." For load/unload and on/off operation, this would be the midpoint between the load pressure setpoint and the unload pressure setpoint. "System pressure after upgrade" is typically the control pressure setpoint for the VFD compressor. Note that this pressure is entirely separate from the rated pressures given above for the baseline and upgrade compressors. Those pressures represent the pressure at which a compressor will deliver a corresponding rated flow, as given in the manufacturer's performance specification. These rated figures are entirely separate from the pressure settings found on an actual operating unit.
C16: Profile of Compressed Air Demand
C17: The profile of compressed air demand tells how heavily loaded a compressor is loaded throughout the work week. Some systems are heavily loaded, delivering high output continuously throughout the entire week. Others are more variable, working to capacity during periods of heavy air use, such as when the sand blaster is operating, but spending most of the time delivering minimal flow for air tools, air cylinders, and the ever-present leak load.
C18: To characterize the operation of a system, divide the operating time into natural categories that describe the system's operation. For example, if a system is pressurized 16 hours every day, and the compressor barely meets the demand for air due to simultaneous occurrence of heavy loads during 4 of those hours, then for 4/16 (= 25%) of the time, the system can be considered to be 100% loaded. Further, if during 8 hours of each day the compressor loads and unloads regularly, staying loaded about half the time, then 8/16 (= 50%) of the time the demand for air will be at 50% of capacity. If during the remaining 4 hours per day there is little demand for air, but the compressor continues to run, loading up about 12 minutes per hour, then during that 4/16 (=25%) of the time the demand would be 12/60 = 20% of capacity, which could be mostly meeting leak load. Our time bins now add to 100%, as they should (25% + 50% + 25%), and we have characterized the operation of the system.
C19: Note that the final line in the profile table is reserved for the special no-load operating condition when the system is pressurized and the compressor is enabled, but the load is so low that the compressor has timed out and switched off after "idling" in the unloaded state. During these times, the compressor motor draws no power. This situation is quite different from the no load condition when the compressor has unloaded, but is still spinning. In this second case, significant power is consumed even though the air delivery rate is zero cfm.
C20: Interpretation of Project NPV
C21: The Net Present Value (NPV) given at the bottom of the Savings Calculations sheet (Estimate of Energy Savings and Incentives) accounts for cashflows over a ten-year period using a discount rate of 5%. Non-energy benefits, if any have been entered in the Customer Information Sheet, are included in the NPV calculation. Energy savings, and thus avoided energy costs, are assumed constant over the ten year period. The rate paid for energy is also assumed constant; no inflation factor has been applied to energy rates.
C22: Creating the EE Central Upload File (for utility and administrator use)
C23: To create the datafile for upload to the EE Central, press CTRL-P while viewing the Savings Calculation page. The file will write immediately and a window will open asking for the filename. The suggested filename is the same as the calculator filename, with "_EE Central" appended. The default folder location is the same as that of the calculator file you are writing from. Folder location and filename may be changed as desired.
B24: ="Cascade Energy, Inc. © "&YEAR(TODAY()) -> Cascade Energy, Inc. © 2024 | D24: =ToolName&" - "&ToolVersion -> BPA Small Compressed Air Calculator - 5.1
